{"text_format":"1","workbook":"xlsx","n_sheets":6,"sheets":["Frontpage🛠️","Project estimate💰","Project Estimate Breakdown💰","Project estimate - Description","Language","Currency"],"not_rendered":{"charts":0,"images":2,"macros":1,"external_links":0,"defined_names":8,"comments":0,"pivot_tables":0},"unopened":[],"bounds":{"document_bytes":16777216,"sheet_cells":100000,"rows_first":2000,"rows_last":500,"rows_between":2000,"halvings":0,"cell_chars":16384,"cell_head_chars":4096},"cells_cut":0,"cells_raw":0,"read":"whole","date_system":"1900"}

{"sheet":"Frontpage🛠️","index":0,"n_rows":15,"n_cols":4,"rows_kept":15,"cut":false,"hidden":false,"merged":[[12,3,12,4],[3,2,8,6],[11,3,11,4],[13,3,13,4]]}
[]
[null,null,"Calculator"]
[null,null,"SERVICE"]
[null,null,"Service calculator is tool to help estimate Service deliverables. \nEstimat is based on best practices, but service deliverbles need to be verified by consultancy department before offer is sent to customer.\n\nIf you have questions or in need for help, please contact your Sales Manager or local NSR."]
[]
[]
[]
[]
[]
[]
[null,null,"Choose your settings"]
[null,null,"Select language","NO"]
[null,null,"Select currency","Norway"]
[null,null,"Select rate type","Normal"]
[null,null,null,"Rate currently only available for Norway"]

{"sheet":"Project estimate💰","index":1,"n_rows":67,"n_cols":19,"rows_kept":67,"cut":false,"hidden":false,"merged":[]}
[]
[null,"PROJECT"]
[null,"ESTIMATION"]
[null,"01","IDENTIFY",{"$f":"Language!$C$12","v":"Gjennomføringer"},{"$f":"Language!$C$13","v":"Konsulenter"},{"$f":"Language!$C$14","v":"Forberedelser"},{"$f":"Language!$C$15","v":"Gjennomføring"},{"$f":"Language!$C$16","v":"Etterarbeid"},{"$f":"Language!$C$17","v":"Forberedelser - Total"},{"$f":"Language!$C$18","v":"Gjennomføring - Total"},{"$f":"Language!$C$19","v":"Etterarbeid - Total"},{"$f":"Language!$C$20","v":"Tid - Total"},{"$f":"Language!$C$21","v":"Kostnad - Forberedelser"},{"$f":"Language!$C$22","v":"Kostnad - Gjennomføring"},{"$f":"Language!$C$23","v":"Kostnad - Etterarbeid"},{"$f":"Language!$C$24","v":"Kostnad - Total"},null,null,{"$f":"Language!$C$25","v":"Aktivitet - Beskrivelse"}]
[null,"ID01",{"$f":"VLOOKUP(B5,Language!$B$27:$C$118,2,FALSE)","v":"Løsningsbeskrivelse"},0,2,4,3,4,{"$f":"$D5*F5","v":0},{"$f":"$D5*E5*G5","v":0},{"$f":"$D5*H5","v":0},{"$f":"SUM(I5:K5)","v":0},{"$f":"(D5*F5*PricePerHour)","v":0},{"$f":"(D5*E5*G5*PricePerHour)","v":0},{"$f":"D5*H5*PricePerHour","v":0},{"$f":"SUM(M5:O5)","v":0},null,null,{"$f":"VLOOKUP(B5,Language!$B$27:$D$118,3,FALSE)","v":0}]
[null,"ID00","Custom activity",0,0,0,0,0,{"$f":"$D6*F6","v":0},{"$f":"$D6*E6*G6","v":0},{"$f":"$D6*H6","v":0},0,{"$f":"(D6*F6*PricePerHour)","v":0},{"$f":"(D6*E6*G6*PricePerHour)","v":0},{"$f":"D6*H6*PricePerHour","v":0},{"$f":"SUM(M6:O6)","v":0}]
[null,"ID00","Custom activity",0,0,0,0,0,0,0,0,{"$f":"SUM(I7:K7)","v":0},{"$f":"(D7*F7*PricePerHour)","v":0},{"$f":"(D7*E7*G7*PricePerHour)","v":0},{"$f":"D7*H7*PricePerHour","v":0},0]
[null,null,"Phase summary",{"$f":"SUM(D5:D7)","v":0},null,null,null,null,{"$f":"SUM(I5:I7)","v":0},{"$f":"SUM(J5:J7)","v":0},0,0,{"$f":"SUM(M5:M7)","v":0},{"$f":"SUM(N5:N7)","v":0},{"$f":"SUM(O5:O7)","v":0},{"$f":"SUM(P5:P7)","v":0}]
[null,"02","INITIATE",{"$f":"Language!$C$12","v":"Gjennomføringer"},{"$f":"Language!$C$13","v":"Konsulenter"},{"$f":"Language!$C$14","v":"Forberedelser"},{"$f":"Language!$C$15","v":"Gjennomføring"},{"$f":"Language!$C$16","v":"Etterarbeid"},{"$f":"Language!$C$17","v":"Forberedelser - Total"},{"$f":"Language!$C$18","v":"Gjennomføring - Total"},{"$f":"Language!$C$19","v":"Etterarbeid - Total"},{"$f":"Language!$C$20","v":"Tid - Total"},{"$f":"Language!$C$21","v":"Kostnad - Forberedelser"},{"$f":"Language!$C$22","v":"Kostnad - Gjennomføring"},{"$f":"Language!$C$23","v":"Kostnad - Etterarbeid"},{"$f":"Language!$C$24","v":"Kostnad - Total"},null,null,{"$f":"Language!$C$25","v":"Aktivitet - Beskrivelse"}]
[null,"IN01",{"$f":"VLOOKUP(B10,Language!$B$27:$C$118,2,FALSE)","v":"Verdi workshop"},0,2,4,3,4,{"$f":"$D10*F10","v":0},{"$f":"$D10*E10*G10","v":0},{"$f":"$D10*H10","v":0},{"$f":"SUM(I10:K10)","v":0},{"$f":"(D10*F10*PricePerHour)","v":0},{"$f":"(D10*E10*G10*PricePerHour)","v":0},{"$f":"D10*H10*PricePerHour","v":0},{"$f":"SUM(M10:O10)","v":0},null,null,{"$f":"VLOOKUP(B10,Language!$B$27:$D$118,3,FALSE)","v":"Skape enighet om hvorfor vi gjør dette og hvordan dette støtter strategien. Opparbeide en felles forståelse for og sterk forankring av prosjektets omfang og leveranser i ledergruppen. Kartlegge de 3-5 viktigste KPIer som forretningen navigerer og prioriterer etter."}]
[null,"IN02",{"$f":"VLOOKUP(B11,Language!$B$27:$C$118,2,FALSE)","v":"Kick-Off møte"},1,1,2,2,2,{"$f":"$D11*F11","v":2},{"$f":"$D11*E11*G11","v":2},{"$f":"$D11*H11","v":2},{"$f":"SUM(I11:K11)","v":6},{"$f":"(D11*F11*PricePerHour)","v":3110},{"$f":"(D11*E11*G11*PricePerHour)","v":3110},{"$f":"D11*H11*PricePerHour","v":3110},{"$f":"SUM(M11:O11)","v":9330},null,null,{"$f":"VLOOKUP(B11,Language!$B$27:$D$118,3,FALSE)","v":"Skape felles forståelse av prosjektets omfang, leveranser og nøkkel KPI. Definere organisering av prosjektet og mobilisere kjerneteam.Forberede designfasen (Hva trenger vi fra de - hvem ønsker vi at skal delta)."}]
[null,"IN00","Custom activity",0,0,0,0,0,0,0,0,0,{"$f":"(D12*F12*PricePerHour)","v":0},{"$f":"(D12*E12*G12*PricePerHour)","v":0},{"$f":"D12*H12*PricePerHour","v":0},0]
[null,"IN00","Custom activity",0,0,0,0,0,0,0,0,0,{"$f":"(D13*F13*PricePerHour)","v":0},{"$f":"(D13*E13*G13*PricePerHour)","v":0},{"$f":"D13*H13*PricePerHour","v":0},0]
[null,null,"Phase summary",{"$f":"SUM(D10:D13)","v":1},null,null,null,null,{"$f":"SUM(I10:I13)","v":2},{"$f":"SUM(J10:J13)","v":2},2,6,{"$f":"SUM(M10:M13)","v":3110},{"$f":"SUM(N10:N13)","v":3110},{"$f":"SUM(O10:O13)","v":3110},{"$f":"SUM(P10:P13)","v":9330}]
[null,"03","DESIGN",{"$f":"Language!$C$12","v":"Gjennomføringer"},{"$f":"Language!$C$13","v":"Konsulenter"},{"$f":"Language!$C$14","v":"Forberedelser"},{"$f":"Language!$C$15","v":"Gjennomføring"},{"$f":"Language!$C$16","v":"Etterarbeid"},{"$f":"Language!$C$17","v":"Forberedelser - Total"},{"$f":"Language!$C$18","v":"Gjennomføring - Total"},{"$f":"Language!$C$19","v":"Etterarbeid - Total"},{"$f":"Language!$C$20","v":"Tid - Total"},{"$f":"Language!$C$21","v":"Kostnad - Forberedelser"},{"$f":"Language!$C$22","v":"Kostnad - Gjennomføring"},{"$f":"Language!$C$23","v":"Kostnad - Etterarbeid"},{"$f":"Language!$C$24","v":"Kostnad - Total"},null,null,{"$f":"Language!$C$25","v":"Aktivitet - Beskrivelse"}]
[null,"DE01",{"$f":"VLOOKUP(B16,Language!$B$27:$C$118,2,FALSE)","v":"KPI workshop"},1,2,8,4,0,{"$f":"$D16*F16","v":8},{"$f":"$D16*E16*G16","v":8},{"$f":"$D16*H16","v":0},{"$f":"SUM(I16:K16)","v":16},{"$f":"(D16*F16*PricePerHour)","v":12440},{"$f":"(D16*E16*G16*PricePerHour)","v":12440},{"$f":"D16*H16*PricePerHour","v":0},{"$f":"SUM(M16:O16)","v":24880},null,null,{"$f":"VLOOKUP(B16,Language!$B$27:$D$118,3,FALSE)","v":"Omsette de viktigste måleparameter til leading og lagging KPIer. Kvalifisere KPI, hvordan omsetter vi dette til SO og kan vi måle og følge opp dette. Hvilke dashboards trenger vi for å kunne omsette data til innsikt. Hvem er ansvarlig for datainnsamling, kvalifisering og SO hos kunden."}]
[null,"DE02",{"$f":"VLOOKUP(B17,Language!$B$27:$C$118,2,FALSE)","v":"Arbeidsflyt workshop"},1,2,8,4,4,{"$f":"$D17*F17","v":8},8,4,20,12440,12440,6220,{"$f":"SUM(M17:O17)","v":31100},null,null,{"$f":"VLOOKUP(B17,Language!$B$27:$D$118,3,FALSE)","v":"Forberede designfasen (Hva trenger vi fra de - hvem ønsker vi at skal delta)."}]
[null,"DE03",{"$f":"VLOOKUP(B18,Language!$B$27:$C$118,2,FALSE)","v":"Konfigurasjonsworkshop"},1,1,8,4,0,8,4,0,12,12440,6220,0,18660,null,null,{"$f":"VLOOKUP(B18,Language!$B$27:$D$118,3,FALSE)","v":"Workshop med 2 konsulenter fasilitert digitalt via Miro eller fysisk etter Brown Paper metoden. Formålet med workshopen er å komme frem til en best mulig utforming og konfigurasjon for SuperOffice CRM. Vi fokuserer på at systemet må støtte forretningsprosessen (definert i Workflow workshop) og dekke behovet for brukerstøtte og rapportering i organisasjonen. Databasen konfigureres og alt dokumenteres."}]
[null,"DE04",{"$f":"VLOOKUP(B19,Language!$B$27:$C$118,2,FALSE)","v":"CRM Script spesifikasjon"},0,1,0,2,2,0,0,0,0,0,0,0,0,null,null,{"$f":"VLOOKUP(B19,Language!$B$27:$D$118,3,FALSE)","v":"Formålet med CRMScript-workshopen er at vi sammen avdekker deres behov for automatisering av prosesser, for å sikre datakvalitet og for spesialtilpassing av SuperOffice. Utvikling av script estimeres på bakgrunn av denne aktiviteten. "}]
[null,"DE05",{"$f":"VLOOKUP(B20,Language!$B$27:$C$118,2,FALSE)","v":"Importspesifikasjon"},0,1,0,4,4,0,0,0,0,0,0,0,0,null,null,{"$f":"VLOOKUP(B20,Language!$B$27:$D$118,3,FALSE)","v":"Et arbeidsmøte hvor man går igjennom importbehovene. Formålet er en oversikt over hvilke felt som skal importeres og hvor disse skal synliggjøres i SuperOffice. Gjennomføring av selve importen estimeres på bakgrunn av denne aktiviteten. "}]
[null,"DE06",{"$f":"VLOOKUP(B21,Language!$B$27:$C$118,2,FALSE)","v":"Data synkroniseringsspesifikasjon"},0,1,0,4,4,0,0,0,0,0,0,0,0,null,null,{"$f":"VLOOKUP(B21,Language!$B$27:$D$118,3,FALSE)","v":"Formålet med Synkroniserings spesifikasjonen er at vi sammen avdekker deres behov for jevnlig utveksling av data (filer) ved bruk av InfoBridge sin app DataBridge. Konfigurasjon og oppsett av eksport/import estimeres på bakgrunn av denne aktiviteten."}]
[null,"DE07",{"$f":"VLOOKUP(B22,Language!$B$27:$C$118,2,FALSE)","v":"Kundesenter spesifikasjon (CEP)"},0,1,0,4,4,0,0,0,0,0,0,0,0,null,null,{"$f":"VLOOKUP(B22,Language!$B$27:$D$118,3,FALSE)","v":"Formålet med workshopen er at vi sammen avdekker deres behov for kundetilpasset oppsett og funksjonalitet på Kundesenteret. Dette dokumenteres og evt. utvikling estimeres på bakgrunn av denne aktiviteten. "}]
[null,"DE08",{"$f":"VLOOKUP(B23,Language!$B$27:$C$118,2,FALSE)","v":"AI spesifikasjon"},0,1,0,4,4,0,0,0,0,0,0,0,0,null,null,{"$f":"VLOOKUP(B23,Language!$B$27:$D$118,3,FALSE)","v":"Ikke tilgjengelig enda"}]
[null,"DE09",{"$f":"VLOOKUP(B24,Language!$B$27:$C$118,2,FALSE)","v":"Prototype presentasjon Lite"},1,1,0,4,0,0,4,0,4,0,6220,0,6220,null,null,{"$f":"VLOOKUP(B24,Language!$B$27:$D$118,3,FALSE)","v":"Konfigurert løsning presenteres kunden og definert arbeidsprosess/flyt demonstreres. Løsningen godkjennes, behov for evt. endringer konkretiseres."}]
[null,"DE00","Custom activity",0,0,0,0,0,0,0,0,0,0,0,0,0]
[null,"DE00","Custom activity",0,0,0,0,0,0,0,0,0,0,0,0,0]
[null,"DE00","Custom activity",0,0,0,0,0,0,0,0,0,0,0,0,0]
[null,null,"Phase summary",{"$f":"SUM(D16:D27)","v":4},null,null,null,null,{"$f":"SUM(I16:I27)","v":24},{"$f":"SUM(J16:J27)","v":24},4,52,{"$f":"SUM(M16:M27)","v":37320},{"$f":"SUM(N16:N27)","v":37320},{"$f":"SUM(O16:O27)","v":6220},{"$f":"SUM(P16:P27)","v":80860}]
[null,"04","IMPLEMENT",{"$f":"Language!$C$12","v":"Gjennomføringer"},{"$f":"Language!$C$13","v":"Konsulenter"},{"$f":"Language!$C$14","v":"Forberedelser"},{"$f":"Language!$C$15","v":"Gjennomføring"},{"$f":"Language!$C$16","v":"Etterarbeid"},{"$f":"Language!$C$17","v":"Forberedelser - Total"},{"$f":"Language!$C$18","v":"Gjennomføring - Total"},{"$f":"Language!$C$19","v":"Etterarbeid - Total"},{"$f":"Language!$C$20","v":"Tid - Total"},{"$f":"Language!$C$21","v":"Kostnad - Forberedelser"},{"$f":"Language!$C$22","v":"Kostnad - Gjennomføring"},{"$f":"Language!$C$23","v":"Kostnad - Etterarbeid"},{"$f":"Language!$C$24","v":"Kostnad - Total"},null,null,{"$f":"Language!$C$25","v":"Aktivitet - Beskrivelse"}]
[null,"IM01",{"$f":"VLOOKUP(B30,Language!$B$27:$C$118,2,FALSE)","v":"Installasjon av SuperOffice og teknisk avklaring (On site)"},0,1,2,8,0,{"$f":"$D30*F30","v":0},{"$f":"$D30*E30*G30","v":0},{"$f":"$D30*H30","v":0},{"$f":"SUM(I30:K30)","v":0},{"$f":"(D30*F30*PricePerHour)","v":0},{"$f":"(D30*E30*G30*PricePerHour)","v":0},{"$f":"D30*H30*PricePerHour","v":0},{"$f":"SUM(M30:O30)","v":0},null,null,{"$f":"VLOOKUP(B30,Language!$B$27:$D$118,3,FALSE)","v":"Forberedelser og gjennomføring av installasjon av SuperOffice på kundens egne servere."}]
[null,"IM02",{"$f":"VLOOKUP(B31,Language!$B$27:$C$118,2,FALSE)","v":"Installasjon av Exchange Synchronizer (On site)"},0,1,0,4,0,{"$f":"$D31*F31","v":0},{"$f":"$D31*E31*G31","v":0},{"$f":"$D31*H31","v":0},{"$f":"SUM(I31:K31)","v":0},0,0,0,{"$f":"SUM(M31:O31)","v":0},null,null,{"$f":"VLOOKUP(B31,Language!$B$27:$D$118,3,FALSE)","v":"Forberedelser og gjennomføring av installasjon av Exchange Synchronizer på kundens egne servere."}]
[null,"IM03",{"$f":"VLOOKUP(B32,Language!$B$27:$C$118,2,FALSE)","v":"Installasjon av klienter / Oppsett av brukere"},0,1,0,4,0,0,0,0,0,0,0,0,0,null,null,{"$f":"VLOOKUP(B32,Language!$B$27:$D$118,3,FALSE)","v":"Bistand til installasjon av SuperOffice klient på brukernes maskiner."}]
[null,"IM04",{"$f":"VLOOKUP(B33,Language!$B$27:$C$118,2,FALSE)","v":"Oppsett konfigurasjon av Synchronizer for SuperOffice"},1,1,0,4,0,0,4,0,4,0,6220,0,6220,null,null,{"$f":"VLOOKUP(B33,Language!$B$27:$D$118,3,FALSE)","v":"Bistand til oppsett og konfigurasjon av Synchronizer for SuperOffice."}]
[null,"IM05",{"$f":"VLOOKUP(B34,Language!$B$27:$C$118,2,FALSE)","v":"Bistand i oppsett av ekstra maler eller tilbudsmaler"},1,1,0,8,0,0,8,0,8,0,12440,0,12440,null,null,{"$f":"VLOOKUP(B34,Language!$B$27:$D$118,3,FALSE)","v":"Formålet er at vi sammen går igjennom de maler dere ønsker i SuperOffice. Vi bistår med å få på plass malvariabler slik at informasjon automatisk fylles ut når man skriver dokumenter fra SuperOffice.  "}]
[null,"IM06",{"$f":"VLOOKUP(B35,Language!$B$27:$C$118,2,FALSE)","v":"Oppsett og opplæring i Utsendelser og Webskjemaer"},0,1,0,8,0,0,0,0,0,0,0,0,0,null,null,{"$f":"VLOOKUP(B35,Language!$B$27:$D$118,3,FALSE)","v":"Oppsett, gjennomgang og opplæring i utsendelser og webskjema."}]
[null,"IM07",{"$f":"VLOOKUP(B36,Language!$B$27:$C$118,2,FALSE)","v":"Chat konfigurasjon og opplæring"},0,1,0,4,0,0,0,0,0,0,0,0,0,null,null,{"$f":"VLOOKUP(B36,Language!$B$27:$D$118,3,FALSE)","v":"Vi konfigurerer løsning og sørger for at dere får korrekt utseende og oppførsel på Chat widgeten dere plasserer på hjemmesiden deres. Deretter lærer vi dere hvordan dette benyttes. "}]
[null,"IM08",{"$f":"VLOOKUP(B37,Language!$B$27:$C$118,2,FALSE)","v":"Konfigurasjon og oppsett av Dashbord"},1,1,0,4,0,{"$f":"$D37*F37","v":0},{"$f":"$D37*E37*G37","v":4},{"$f":"$D37*H37","v":0},{"$f":"SUM(I37:K37)","v":4},0,6220,0,6220]
[null,"IM09",{"$f":"VLOOKUP(B38,Language!$B$27:$C$118,2,FALSE)","v":"Konfigurasjon og oppsett av SuperOffice"},1,1,0,8,0,0,8,0,8,0,12440,0,12440]
[null,"IM10",{"$f":"VLOOKUP(B39,Language!$B$27:$C$118,2,FALSE)","v":"Utvikling av CRMScript"},0,1,0,8,0,0,0,0,0,0,0,0,0,null,null,{"$f":"VLOOKUP(B39,Language!$B$27:$D$118,3,FALSE)","v":"SuperOffice utvikler script basert ihht spesifikasjon (DE04)"}]
[null,"IM11",{"$f":"VLOOKUP(B40,Language!$B$27:$C$118,2,FALSE)","v":"Import av data"},0,1,0,4,0,0,0,0,0,0,0,0,0,null,null,{"$f":"VLOOKUP(B40,Language!$B$27:$D$118,3,FALSE)","v":"SuperOffice utfører import av data ihht spesifikasjon (DE05)"}]
[null,"IM12",{"$f":"VLOOKUP(B41,Language!$B$27:$C$118,2,FALSE)","v":"Oppsett av datasynkronisering (DataBridge)"},0,1,0,8,0,0,0,0,0,0,0,0,0,null,null,{"$f":"VLOOKUP(B41,Language!$B$27:$D$118,3,FALSE)","v":"SuperOffice konfigurerer data synkronisering ihht spesifikasjon (DE06)"}]
[null,"IM13",{"$f":"VLOOKUP(B42,Language!$B$27:$C$118,2,FALSE)","v":"Konfigurasjon/tilpasning av kundesenter"},0,1,0,8,0,0,0,0,0,0,0,0,0,null,null,{"$f":"VLOOKUP(B42,Language!$B$27:$D$118,3,FALSE)","v":"SuperOffice konfigurerer og tilpasser kundesenteret ihht spesifikasjon (DE07)"}]
[null,"IM14",{"$f":"VLOOKUP(B43,Language!$B$27:$C$118,2,FALSE)","v":"Test av løsning basert på arbeidsflyt"},0,1,0,8,0,0,0,0,0,0,0,0,0,null,null,{"$f":"VLOOKUP(B43,Language!$B$27:$D$118,3,FALSE)","v":0}]
[null,"IM15",{"$f":"VLOOKUP(B44,Language!$B$27:$C$118,2,FALSE)","v":"Bistand med utarbeidelse av akseptansetest (kundens ansvar)"},0,1,0,8,0,0,0,0,0,0,0,0,0,null,null,{"$f":"VLOOKUP(B44,Language!$B$27:$D$118,3,FALSE)","v":0}]
[null,"IM16",{"$f":"VLOOKUP(B45,Language!$B$27:$C$118,2,FALSE)","v":"Bistand i akseptansetest (kundens ansvar)"},0,1,0,8,0,0,0,0,0,0,0,0,0,null,null,{"$f":"VLOOKUP(B45,Language!$B$27:$D$118,3,FALSE)","v":0}]
[null,"IM17",{"$f":"VLOOKUP(B46,Language!$B$27:$C$118,2,FALSE)","v":"Prototype presentasjon Full"},0,1,0,8,0,0,0,0,0,0,0,0,0,null,null,{"$f":"VLOOKUP(B46,Language!$B$27:$D$118,3,FALSE)","v":"Full løsning presenteres kunde. Dette inkluderer importerte eller synkroniserte data og eventuelle integrasjoner og tilpasninger. Løsningen godkjennes, behov for evt. endringer konkretiseres."}]
[null,"IM00","Custom activity",0,0,0,0,0,0,0,0,0,0,0,0,0]
[null,"IM00","Custom activity",0,0,0,0,0,0,0,0,0,0,0,0,0]
[null,null,"Phase summary",{"$f":"SUM(D30:D48)","v":4},null,null,null,null,{"$f":"SUM(I30:I48)","v":0},{"$f":"SUM(J30:J48)","v":24},0,24,{"$f":"SUM(M30:M48)","v":0},{"$f":"SUM(N30:N48)","v":37320},{"$f":"SUM(O30:O48)","v":0},{"$f":"SUM(P30:P48)","v":37320}]
[null,"05","ONBOARDING",{"$f":"Language!$C$12","v":"Gjennomføringer"},{"$f":"Language!$C$13","v":"Konsulenter"},{"$f":"Language!$C$14","v":"Forberedelser"},{"$f":"Language!$C$15","v":"Gjennomføring"},{"$f":"Language!$C$16","v":"Etterarbeid"},{"$f":"Language!$C$17","v":"Forberedelser - Total"},{"$f":"Language!$C$18","v":"Gjennomføring - Total"},{"$f":"Language!$C$19","v":"Etterarbeid - Total"},{"$f":"Language!$C$20","v":"Tid - Total"},{"$f":"Language!$C$21","v":"Kostnad - Forberedelser"},{"$f":"Language!$C$22","v":"Kostnad - Gjennomføring"},{"$f":"Language!$C$23","v":"Kostnad - Etterarbeid"},{"$f":"Language!$C$24","v":"Kostnad - Total"},null,null,{"$f":"Language!$C$25","v":"Aktivitet - Beskrivelse"}]
[null,"ON01",{"$f":"VLOOKUP(B51,Language!$B$27:$C$118,2,FALSE)","v":"Onboarding møte"},1,1,4,4,0,{"$f":"$D51*F51","v":4},{"$f":"$D51*E51*G51","v":4},{"$f":"$D51*H51","v":0},{"$f":"SUM(I51:K51)","v":8},{"$f":"(D51*F51*PricePerHour)","v":6220},{"$f":"(D51*E51*G51*PricePerHour)","v":6220},{"$f":"D51*H51*PricePerHour","v":0},{"$f":"SUM(M51:O51)","v":12440},null,null,{"$f":"VLOOKUP(B51,Language!$B$27:$D$118,3,FALSE)","v":"Sikre at organisasjonen (kjerneteam) er klare til å fasilitere endringsreisen og sikre varig effekt av SuperOffice. Identifisere de tradisjonelle motstandere i endringer og hvordan ivaretar vi de. Utarbeide plan sammen med kjerneteam for å sikre at endringsreisen ivaretas også på sikt"}]
[null,"ON02",{"$f":"VLOOKUP(B52,Language!$B$27:$C$118,2,FALSE)","v":"Train the Trainer"},0,1,8,24,0,{"$f":"$D52*F52","v":0},{"$f":"$D52*E52*G52","v":0},{"$f":"$D52*H52","v":0},{"$f":"SUM(I52:K52)","v":0},0,0,0,{"$f":"SUM(M52:O52)","v":0},null,null,{"$f":"VLOOKUP(B52,Language!$B$27:$D$118,3,FALSE)","v":"Trene kjerneteam i å trene organisasjonen i SuperOffice. Samtidig vil kjerneteam oppnå økt kompetanse i SuperOffice administrasjon og bruk. Forberede utrullingsplan og personlig plan med kjerneteam."}]
[null,"ON03",{"$f":"VLOOKUP(B53,Language!$B$27:$C$118,2,FALSE)","v":"Bedriftstilpasset opplæring"},2,1,4,4,0,8,8,0,16,12440,12440,0,24880,null,null,{"$f":"VLOOKUP(B53,Language!$B$27:$D$118,3,FALSE)","v":"SuperOffice utarbeider et opplæringsprogram som er tilpasset deres organisasjon. Kurslederen vil på bakgrunn av de behov dere har definert, tilpasse et eget kursopplegg. Vår erfaring tilsier at det beste læringsresultatet er når kurset holdes på egen database. "}]
[null,"ON04",{"$f":"VLOOKUP(B54,Language!$B$27:$C$118,2,FALSE)","v":"Administrator gjennomgang"},1,1,0,8,0,0,8,0,8,0,12440,0,12440,null,null,{"$f":"VLOOKUP(B54,Language!$B$27:$D$118,3,FALSE)","v":"Et kurs i hvordan SuperOffice administreres. Kurset vil gi deg innsikt i hvordan SuperOffice kan tilpasses og optimaliseres til din bedrift. Teamaer som gjennomgås er blandt annet:  brukerrettigheter for ansatte, brukergrensesnitt, brukerdefinerte felt, import, web paneler og dokumentmaler. "}]
[null,"ON05",{"$f":"VLOOKUP(B55,Language!$B$27:$C$118,2,FALSE)","v":"GO-Live assistanse"},1,1,0,4,0,0,4,0,4,0,6220,0,6220,null,null,{"$f":"VLOOKUP(B55,Language!$B$27:$D$118,3,FALSE)","v":"Formålet med denne aktiviteten er å få alle brukere skikkelig i gang med løsningen. Er det ting som dukker opp ved oppstart har dere en konsulent til stede eller remote som kan bistå dersom det skulle være noe eller dere trenger annen rådgivning i oppstartsfasen. "}]
[null,"ON06",{"$f":"VLOOKUP(B56,Language!$B$27:$C$118,2,FALSE)","v":"Sign off leveranse"},1,1,2,2,0,2,2,0,4,3110,3110,0,6220,null,null,{"$f":"VLOOKUP(B56,Language!$B$27:$D$118,3,FALSE)","v":"Koordinering av leveransen mot kundens prosjektleder/ansvarlig samt en signering på at leveransen er avsluttet. "}]
[null,"ON07",{"$f":"VLOOKUP(B57,Language!$B$27:$C$118,2,FALSE)","v":"Aftercare"},0,1,0,8,0,0,0,0,0,0,0,0,0,null,null,{"$f":"VLOOKUP(B57,Language!$B$27:$D$118,3,FALSE)","v":0}]
[null,"ON00","Custom activity",0,0,0,0,0,0,0,0,0,0,0,0,0]
[null,"ON00","Custom activity",0,0,0,0,0,0,0,0,0,0,0,0,0]
[null,null,"Phase summary",{"$f":"SUM(D51:D59)","v":6},null,null,null,null,{"$f":"SUM(I51:I59)","v":14},26,0,40,21770,40430,0,62200]
[null,"06","PROJECT MANAGEMENT",{"$f":"Language!$C$12","v":"Gjennomføringer"},null,null,null,null,null,{"$f":"Language!$C$18","v":"Gjennomføring - Total"},null,{"$f":"Language!$C$20","v":"Tid - Total"},null,null,null,{"$f":"Language!$C$24","v":"Kostnad - Total"},null,null,{"$f":"Language!$C$25","v":"Aktivitet - Beskrivelse"}]
[null,"PM01",{"$f":"VLOOKUP(B62,Language!$B$27:$C$118,2,FALSE)","v":"Prosjektledelse"},1,null,null,null,null,null,{"$f":"ROUNDUP(L62*0.6,)","v":12},null,{"$f":"ROUNDUP(SUM(L8,L14,L28,L49,L60)*0.15,0)","v":19},null,{"$f":"(D62*E62*J62*PricePerHour)","v":0},{"$f":"D62*H62*PricePerHour","v":0},{"$f":"L62*PricePerHour","v":29545},null,null,{"$f":"VLOOKUP(B62,Language!$B$27:$D$118,3,FALSE)","v":"Planlegging av prosjektet i samarbeid med kundens prosjektleder. Oppgavene er bl.a. å utarbeide prosjektplan og allokere ressurser."}]
[null,"PM00","Custom activity",0,null,null,null,null,null,null,null,{"$f":"SUM(I63:K63)","v":0},null,null,null,{"$f":"N63+O63","v":0}]
[null,"PM00","Custom activity",0,null,null,null,null,null,null,null,0,null,null,null,0]
[null,null,"Phase summary",{"$f":"SUM(D62:D64)","v":1},null,null,null,null,{"$f":"IF(SUM(I62:I64)=0,_xlfn.IFNA(LOOKUP(IsEstimated,I62:I64),0),SUM(I62:I64))","v":0},{"$f":"J62","v":12},{"$f":"IF(SUM(K62:K64)=0,_xlfn.IFNA(LOOKUP(IsEstimated,K62:K64),0),SUM(K62:K64))","v":0},{"$f":"IF(SUM(L62:L64)=0,_xlfn.IFNA(LOOKUP(IsEstimated,L62:L64),0),SUM(L62:L64))","v":19},{"$f":"SUM(M62:M64)","v":0},{"$f":"SUM(N62:N64)","v":0},{"$f":"SUM(O62:O64)","v":0},{"$f":"SUM(P62:P64)","v":29545}]
[]
[null,null,"TOTAL",{"$f":"SUM(D65,D60,D49,D28,D14,D8)","v":16},null,null,{"$f":"SUM(G65,G60,G49,G28,G14,G8)","v":0},null,40,88,6,141,62200,118180,9330,{"$f":"SUM(P60,P49,P28,P14,P8,P65)","v":219255}]

{"sheet":"Project Estimate Breakdown💰","index":2,"n_rows":67,"n_cols":9,"rows_kept":67,"cut":false,"hidden":false,"merged":[]}
[]
[]
[null,"PROJECT"]
[null,"ESTIMATE",null,null,null,null,null,null,"EXECUTIONS\n(Used for show/hide row)"]
[null,null,"IDENTIFY",{"$f":"IF('Project estimate💰'!L8=0,\"0\",'Project estimate💰'!L8&\" \"&Duration)","v":"0"},{"$f":"Currency&\" \"&TEXT('Project estimate💰'!P8,\"#\\ ##0\")","v":"NOK  0"},null,{"$f":"Language!$C$11","v":"MØTETID MED KUNDE"},null,{"$f":"SUM(I6:I8)","v":0}]
[null,null,{"$f":"'Project estimate💰'!C5","v":"Løsningsbeskrivelse"},{"$f":"IF('Project estimate💰'!L5=0,IF('Project estimate💰'!D5>0,\"TBA\",'Project estimate💰'!L5),'Project estimate💰'!L5&\" \"&Duration)","v":0},{"$f":"Currency&\" \"&TEXT('Project estimate💰'!P5,\"#\\ ##0\")","v":"NOK  0"},null,{"$f":"IF('Project estimate💰'!D5=0,\" \",'Project estimate💰'!G5*'Project estimate💰'!D5&\" \"& Duration)","v":" "},null,{"$f":"IF('Project estimate💰'!D5=0,\"0\",'Project estimate💰'!D5)","v":"0"}]
[null,null,{"$f":"'Project estimate💰'!C6","v":"Custom activity"},{"$f":"IF('Project estimate💰'!L6=0,\"0\",'Project estimate💰'!L6&\" \"&Duration)","v":"0"},{"$f":"Currency&\" \"&TEXT('Project estimate💰'!P6,\"#\\ ##0\")","v":"NOK  0"},null,{"$f":"IF('Project estimate💰'!D6=0,\" \",'Project estimate💰'!G6*'Project estimate💰'!D6&\" \"& Duration)","v":" "},null,{"$f":"IF('Project estimate💰'!D6=0,\"0\",'Project estimate💰'!D6)","v":"0"}]
[null,null,{"$f":"'Project estimate💰'!C7","v":"Custom activity"},{"$f":"IF('Project estimate💰'!L7=0,\"0\",'Project estimate💰'!L7&\" \"&Duration)","v":"0"},{"$f":"Currency&\" \"&TEXT('Project estimate💰'!P7,\"#\\ ##0\")","v":"NOK  0"},null,{"$f":"IF('Project estimate💰'!D7=0,\" \",'Project estimate💰'!G7*'Project estimate💰'!D7&\" \"& Duration)","v":" "},null,{"$f":"IF('Project estimate💰'!D7=0,\"0\",'Project estimate💰'!D7)","v":"0"}]
[]
[null,null,"INITIATE",{"$f":"IF('Project estimate💰'!L14=0,\"0\",'Project estimate💰'!L14&\" \"&Duration)","v":"6 TIMER"},{"$f":"Currency&\" \"&TEXT('Project estimate💰'!P14,\"#\\ ##0\")","v":"NOK 9 330"},null,{"$f":"Language!$C$11","v":"MØTETID MED KUNDE"},null,{"$f":"SUM(I11:I14)","v":1}]
[null,null,{"$f":"'Project estimate💰'!C10","v":"Verdi workshop"},{"$f":"IF('Project estimate💰'!L10=0,\"0\",'Project estimate💰'!L10&\" \"&Duration)","v":"0"},{"$f":"Currency&\" \"&TEXT('Project estimate💰'!P10,\"#\\ ##0\")","v":"NOK  0"},null,{"$f":"IF('Project estimate💰'!D10=0,\" \",'Project estimate💰'!G10*'Project estimate💰'!D10&\" \"& Duration)","v":" "},null,{"$f":"IF('Project estimate💰'!D10=0,\"0\",'Project estimate💰'!D10)","v":"0"}]
[null,null,{"$f":"'Project estimate💰'!C11","v":"Kick-Off møte"},{"$f":"IF('Project estimate💰'!L11=0,\"0\",'Project estimate💰'!L11&\" \"&Duration)","v":"6 TIMER"},{"$f":"Currency&\" \"&TEXT('Project estimate💰'!P11,\"#\\ ##0\")","v":"NOK 9 330"},null,{"$f":"IF('Project estimate💰'!D11=0,\" \",'Project estimate💰'!G11*'Project estimate💰'!D11&\" \"& Duration)","v":"2 TIMER"},null,{"$f":"IF('Project estimate💰'!D11=0,\"0\",'Project estimate💰'!D11)","v":1}]
[null,null,{"$f":"'Project estimate💰'!C12","v":"Custom activity"},{"$f":"IF('Project estimate💰'!L12=0,\"0\",'Project estimate💰'!L12&\" \"&Duration)","v":"0"},{"$f":"Currency&\" \"&TEXT('Project estimate💰'!P12,\"#\\ ##0\")","v":"NOK  0"},null,{"$f":"IF('Project estimate💰'!D12=0,\" \",'Project estimate💰'!G12*'Project estimate💰'!D12&\" \"& Duration)","v":" "},null,{"$f":"IF('Project estimate💰'!D12=0,\"0\",'Project estimate💰'!D12)","v":"0"}]
[null,null,{"$f":"'Project estimate💰'!C13","v":"Custom activity"},{"$f":"IF('Project estimate💰'!L13=0,\"0\",'Project estimate💰'!L13&\" \"&Duration)","v":"0"},{"$f":"Currency&\" \"&TEXT('Project estimate💰'!P13,\"#\\ ##0\")","v":"NOK  0"},null,{"$f":"IF('Project estimate💰'!D13=0,\" \",'Project estimate💰'!G13*'Project estimate💰'!D13&\" \"& Duration)","v":" "},null,{"$f":"IF('Project estimate💰'!D13=0,\"0\",'Project estimate💰'!D13)","v":"0"}]
[]
[null,null,"DESIGN",{"$f":"IF('Project estimate💰'!L28=0,\"0\",'Project estimate💰'!L28&\" \"&Duration)","v":"52 TIMER"},{"$f":"Currency&\" \"&TEXT('Project estimate💰'!P28,\"#\\ ##0\")","v":"NOK 80 860"},null,{"$f":"Language!$C$11","v":"MØTETID MED KUNDE"},null,{"$f":"SUM(I17:I28)","v":4}]
[null,null,{"$f":"'Project estimate💰'!C16","v":"KPI workshop"},{"$f":"IF('Project estimate💰'!L16=0,\"0\",'Project estimate💰'!L16&\" \"&Duration)","v":"16 TIMER"},{"$f":"Currency&\" \"&TEXT('Project estimate💰'!P16,\"#\\ ##0\")","v":"NOK 24 880"},null,{"$f":"IF('Project estimate💰'!D16=0,\" \",'Project estimate💰'!G16*'Project estimate💰'!D16&\" \"& Duration)","v":"4 TIMER"},null,{"$f":"IF('Project estimate💰'!D16=0,\"0\",'Project estimate💰'!D16)","v":1}]
[null,null,{"$f":"'Project estimate💰'!C17","v":"Arbeidsflyt workshop"},{"$f":"IF('Project estimate💰'!L17=0,\"0\",'Project estimate💰'!L17&\" \"&Duration)","v":"20 TIMER"},{"$f":"Currency&\" \"&TEXT('Project estimate💰'!P17,\"#\\ ##0\")","v":"NOK 31 100"},null,{"$f":"IF('Project estimate💰'!D17=0,\" \",'Project estimate💰'!G17*'Project estimate💰'!D17&\" \"& Duration)","v":"4 TIMER"},null,{"$f":"IF('Project estimate💰'!D17=0,\"0\",'Project estimate💰'!D17)","v":1}]
[null,null,{"$f":"'Project estimate💰'!C18","v":"Konfigurasjonsworkshop"},{"$f":"IF('Project estimate💰'!L18=0,\"0\",'Project estimate💰'!L18&\" \"&Duration)","v":"12 TIMER"},{"$f":"Currency&\" \"&TEXT('Project estimate💰'!P18,\"#\\ ##0\")","v":"NOK 18 660"},null,{"$f":"IF('Project estimate💰'!D18=0,\" \",'Project estimate💰'!G18*'Project estimate💰'!D18&\" \"& Duration)","v":"4 TIMER"},null,{"$f":"IF('Project estimate💰'!D18=0,\"0\",'Project estimate💰'!D18)","v":1}]
[null,null,{"$f":"'Project estimate💰'!C19","v":"CRM Script spesifikasjon"},{"$f":"IF('Project estimate💰'!L19=0,\"0\",'Project estimate💰'!L19&\" \"&Duration)","v":"0"},{"$f":"Currency&\" \"&TEXT('Project estimate💰'!P19,\"#\\ ##0\")","v":"NOK  0"},null,{"$f":"IF('Project estimate💰'!D19=0,\" \",'Project estimate💰'!G19*'Project estimate💰'!D19&\" \"& Duration)","v":" "},null,{"$f":"IF('Project estimate💰'!D19=0,\"0\",'Project estimate💰'!D19)","v":"0"}]
[null,null,{"$f":"'Project estimate💰'!C20","v":"Importspesifikasjon"},{"$f":"IF('Project estimate💰'!L20=0,\"0\",'Project estimate💰'!L20&\" \"&Duration)","v":"0"},{"$f":"Currency&\" \"&TEXT('Project estimate💰'!P20,\"#\\ ##0\")","v":"NOK  0"},null,{"$f":"IF('Project estimate💰'!D20=0,\" \",'Project estimate💰'!G20*'Project estimate💰'!D20&\" \"& Duration)","v":" "},null,{"$f":"IF('Project estimate💰'!D20=0,\"0\",'Project estimate💰'!D20)","v":"0"}]
[null,null,{"$f":"'Project estimate💰'!C21","v":"Data synkroniseringsspesifikasjon"},{"$f":"IF('Project estimate💰'!L21=0,\"0\",'Project estimate💰'!L21&\" \"&Duration)","v":"0"},{"$f":"Currency&\" \"&TEXT('Project estimate💰'!P21,\"#\\ ##0\")","v":"NOK  0"},null,{"$f":"IF('Project estimate💰'!D21=0,\" \",'Project estimate💰'!G21*'Project estimate💰'!D21&\" \"& Duration)","v":" "},null,{"$f":"IF('Project estimate💰'!D21=0,\"0\",'Project estimate💰'!D21)","v":"0"}]
[null,null,{"$f":"'Project estimate💰'!C22","v":"Kundesenter spesifikasjon (CEP)"},{"$f":"IF('Project estimate💰'!L22=0,\"0\",'Project estimate💰'!L22&\" \"&Duration)","v":"0"},{"$f":"Currency&\" \"&TEXT('Project estimate💰'!P22,\"#\\ ##0\")","v":"NOK  0"},null,{"$f":"IF('Project estimate💰'!D22=0,\" \",'Project estimate💰'!G22*'Project estimate💰'!D22&\" \"& Duration)","v":" "},null,{"$f":"IF('Project estimate💰'!D22=0,\"0\",'Project estimate💰'!D22)","v":"0"}]
[null,null,{"$f":"'Project estimate💰'!C23","v":"AI spesifikasjon"},{"$f":"IF('Project estimate💰'!L23=0,\"0\",'Project estimate💰'!L23&\" \"&Duration)","v":"0"},{"$f":"Currency&\" \"&TEXT('Project estimate💰'!P23,\"#\\ ##0\")","v":"NOK  0"},null,{"$f":"IF('Project estimate💰'!D23=0,\" \",'Project estimate💰'!G23*'Project estimate💰'!D23&\" \"& Duration)","v":" "},null,{"$f":"IF('Project estimate💰'!D23=0,\"0\",'Project estimate💰'!D23)","v":"0"}]
[null,null,{"$f":"'Project estimate💰'!C24","v":"Prototype presentasjon Lite"},{"$f":"IF('Project estimate💰'!L24=0,\"0\",'Project estimate💰'!L24&\" \"&Duration)","v":"4 TIMER"},{"$f":"Currency&\" \"&TEXT('Project estimate💰'!P24,\"#\\ ##0\")","v":"NOK 6 220"},null,{"$f":"IF('Project estimate💰'!D24=0,\" \",'Project estimate💰'!G24*'Project estimate💰'!D24&\" \"& Duration)","v":"4 TIMER"},null,{"$f":"IF('Project estimate💰'!D24=0,\"0\",'Project estimate💰'!D24)","v":1}]
[null,null,{"$f":"'Project estimate💰'!C25","v":"Custom activity"},{"$f":"IF('Project estimate💰'!L25=0,\"0\",'Project estimate💰'!L25&\" \"&Duration)","v":"0"},{"$f":"Currency&\" \"&TEXT('Project estimate💰'!P25,\"#\\ ##0\")","v":"NOK  0"},null,{"$f":"IF('Project estimate💰'!D25=0,\" \",'Project estimate💰'!G25*'Project estimate💰'!D25&\" \"& Duration)","v":" "},null,{"$f":"IF('Project estimate💰'!D25=0,\"0\",'Project estimate💰'!D25)","v":"0"}]
[null,null,{"$f":"'Project estimate💰'!C26","v":"Custom activity"},{"$f":"IF('Project estimate💰'!L26=0,\"0\",'Project estimate💰'!L26&\" \"&Duration)","v":"0"},{"$f":"Currency&\" \"&TEXT('Project estimate💰'!P26,\"#\\ ##0\")","v":"NOK  0"},null,{"$f":"IF('Project estimate💰'!D26=0,\" \",'Project estimate💰'!G26*'Project estimate💰'!D26&\" \"& Duration)","v":" "},null,{"$f":"IF('Project estimate💰'!D26=0,\"0\",'Project estimate💰'!D26)","v":"0"}]
[null,null,{"$f":"'Project estimate💰'!C27","v":"Custom activity"},{"$f":"IF('Project estimate💰'!L27=0,\"0\",'Project estimate💰'!L27&\" \"&Duration)","v":"0"},{"$f":"Currency&\" \"&TEXT('Project estimate💰'!P27,\"#\\ ##0\")","v":"NOK  0"},null,{"$f":"IF('Project estimate💰'!D27=0,\" \",'Project estimate💰'!G27*'Project estimate💰'!D27&\" \"& Duration)","v":" "},null,{"$f":"IF('Project estimate💰'!D27=0,\"0\",'Project estimate💰'!D27)","v":"0"}]
[]
[null,null,"IMPLEMENT",{"$f":"_xlfn.IFS('Project estimate💰'!L49=0,\"0\",'Project estimate💰'!L49=IsEstimated,IsEstimated,'Project estimate💰'!L49>0,'Project estimate💰'!L49&\" \"&Duration)","v":"24 TIMER"},{"$f":"Currency&\" \"&TEXT('Project estimate💰'!P49,\"#\\ ##0\")","v":"NOK 37 320"},null,{"$f":"Language!$C$11","v":"MØTETID MED KUNDE"},null,{"$f":"SUM(I31:I49)","v":4}]
[null,null,{"$f":"'Project estimate💰'!C30","v":"Installasjon av SuperOffice og teknisk avklaring (On site)"},{"$f":"IF('Project estimate💰'!L30=0,\"0\",'Project estimate💰'!L30&\" \"&Duration)","v":"0"},{"$f":"Currency&\" \"&TEXT('Project estimate💰'!P30,\"#\\ ##0\")","v":"NOK  0"},null,{"$f":"IF('Project estimate💰'!D30=0,\" \",'Project estimate💰'!G30*'Project estimate💰'!D30&\" \"& Duration)","v":" "},null,{"$f":"IF('Project estimate💰'!D30=0,\"0\",'Project estimate💰'!D30)","v":"0"}]
[null,null,{"$f":"'Project estimate💰'!C31","v":"Installasjon av Exchange Synchronizer (On site)"},{"$f":"IF('Project estimate💰'!L31=0,\"0\",'Project estimate💰'!L31&\" \"&Duration)","v":"0"},{"$f":"Currency&\" \"&TEXT('Project estimate💰'!P31,\"#\\ ##0\")","v":"NOK  0"},null,{"$f":"IF('Project estimate💰'!D31=0,\" \",'Project estimate💰'!G31*'Project estimate💰'!D31&\" \"& Duration)","v":" "},null,{"$f":"IF('Project estimate💰'!D31=0,\"0\",'Project estimate💰'!D31)","v":"0"}]
[null,null,{"$f":"'Project estimate💰'!C32","v":"Installasjon av klienter / Oppsett av brukere"},{"$f":"IF('Project estimate💰'!L32=0,\"0\",'Project estimate💰'!L32&\" \"&Duration)","v":"0"},{"$f":"Currency&\" \"&TEXT('Project estimate💰'!P32,\"#\\ ##0\")","v":"NOK  0"},null,{"$f":"IF('Project estimate💰'!D32=0,\" \",'Project estimate💰'!G32*'Project estimate💰'!D32&\" \"& Duration)","v":" "},null,{"$f":"IF('Project estimate💰'!D32=0,\"0\",'Project estimate💰'!D32)","v":"0"}]
[null,null,{"$f":"'Project estimate💰'!C33","v":"Oppsett konfigurasjon av Synchronizer for SuperOffice"},{"$f":"IF('Project estimate💰'!L33=0,\"0\",'Project estimate💰'!L33&\" \"&Duration)","v":"4 TIMER"},{"$f":"Currency&\" \"&TEXT('Project estimate💰'!P33,\"#\\ ##0\")","v":"NOK 6 220"},null,{"$f":"IF('Project estimate💰'!D33=0,\" \",'Project estimate💰'!G33*'Project estimate💰'!D33&\" \"& Duration)","v":"4 TIMER"},null,{"$f":"IF('Project estimate💰'!D33=0,\"0\",'Project estimate💰'!D33)","v":1}]
[null,null,{"$f":"'Project estimate💰'!C34","v":"Bistand i oppsett av ekstra maler eller tilbudsmaler"},{"$f":"IF('Project estimate💰'!L34=0,\"0\",'Project estimate💰'!L34&\" \"&Duration)","v":"8 TIMER"},{"$f":"Currency&\" \"&TEXT('Project estimate💰'!P34,\"#\\ ##0\")","v":"NOK 12 440"},null,{"$f":"IF('Project estimate💰'!D34=0,\" \",'Project estimate💰'!G34*'Project estimate💰'!D34&\" \"& Duration)","v":"8 TIMER"},null,{"$f":"IF('Project estimate💰'!D34=0,\"0\",'Project estimate💰'!D34)","v":1}]
[null,null,{"$f":"'Project estimate💰'!C35","v":"Oppsett og opplæring i Utsendelser og Webskjemaer"},{"$f":"IF('Project estimate💰'!L35=0,\"0\",'Project estimate💰'!L35&\" \"&Duration)","v":"0"},{"$f":"Currency&\" \"&TEXT('Project estimate💰'!P35,\"#\\ ##0\")","v":"NOK  0"},null,{"$f":"IF('Project estimate💰'!D35=0,\" \",'Project estimate💰'!G35*'Project estimate💰'!D35&\" \"& Duration)","v":" "},null,{"$f":"IF('Project estimate💰'!D35=0,\"0\",'Project estimate💰'!D35)","v":"0"}]
[null,null,{"$f":"'Project estimate💰'!C36","v":"Chat konfigurasjon og opplæring"},{"$f":"IF('Project estimate💰'!L36=0,\"0\",'Project estimate💰'!L36&\" \"&Duration)","v":"0"},{"$f":"Currency&\" \"&TEXT('Project estimate💰'!P36,\"#\\ ##0\")","v":"NOK  0"},null,{"$f":"IF('Project estimate💰'!D36=0,\" \",'Project estimate💰'!G36*'Project estimate💰'!D36&\" \"& Duration)","v":" "},null,{"$f":"IF('Project estimate💰'!D36=0,\"0\",'Project estimate💰'!D36)","v":"0"}]
[null,null,{"$f":"'Project estimate💰'!C37","v":"Konfigurasjon og oppsett av Dashbord"},{"$f":"IF('Project estimate💰'!L37=0,\"0\",'Project estimate💰'!L37&\" \"&Duration)","v":"4 TIMER"},{"$f":"Currency&\" \"&TEXT('Project estimate💰'!P37,\"#\\ ##0\")","v":"NOK 6 220"},null,{"$f":"IF('Project estimate💰'!D37=0,\" \",'Project estimate💰'!G37*'Project estimate💰'!D37&\" \"& Duration)","v":"4 TIMER"},null,{"$f":"IF('Project estimate💰'!D37=0,\"0\",'Project estimate💰'!D37)","v":1}]
[null,null,{"$f":"'Project estimate💰'!C38","v":"Konfigurasjon og oppsett av SuperOffice"},{"$f":"IF('Project estimate💰'!L38=0,\"0\",'Project estimate💰'!L38&\" \"&Duration)","v":"8 TIMER"},{"$f":"Currency&\" \"&TEXT('Project estimate💰'!P38,\"#\\ ##0\")","v":"NOK 12 440"},null,{"$f":"IF('Project estimate💰'!D38=0,\" \",'Project estimate💰'!G38*'Project estimate💰'!D38&\" \"& Duration)","v":"8 TIMER"},null,{"$f":"IF('Project estimate💰'!D38=0,\"0\",'Project estimate💰'!D38)","v":1}]
[null,null,{"$f":"'Project estimate💰'!C39","v":"Utvikling av CRMScript"},{"$f":"IF('Project estimate💰'!L39=0,\"0\",'Project estimate💰'!L39&\" \"&Duration)","v":"0"},{"$f":"Currency&\" \"&TEXT('Project estimate💰'!P39,\"#\\ ##0\")","v":"NOK  0"},null,{"$f":"IF('Project estimate💰'!D39=0,\" \",'Project estimate💰'!G39*'Project estimate💰'!D39&\" \"& Duration)","v":" "},null,{"$f":"IF('Project estimate💰'!D39=0,\"0\",'Project estimate💰'!D39)","v":"0"}]
[null,null,{"$f":"'Project estimate💰'!C40","v":"Import av data"},{"$f":"IF('Project estimate💰'!L40=0,\"0\",'Project estimate💰'!L40&\" \"&Duration)","v":"0"},{"$f":"Currency&\" \"&TEXT('Project estimate💰'!P40,\"#\\ ##0\")","v":"NOK  0"},null,{"$f":"IF('Project estimate💰'!D40=0,\" \",'Project estimate💰'!G40*'Project estimate💰'!D40&\" \"& Duration)","v":" "},null,{"$f":"IF('Project estimate💰'!D40=0,\"0\",'Project estimate💰'!D40)","v":"0"}]
[null,null,{"$f":"'Project estimate💰'!C41","v":"Oppsett av datasynkronisering (DataBridge)"},{"$f":"IF('Project estimate💰'!L41=0,\"0\",'Project estimate💰'!L41&\" \"&Duration)","v":"0"},{"$f":"Currency&\" \"&TEXT('Project estimate💰'!P41,\"#\\ ##0\")","v":"NOK  0"},null,{"$f":"IF('Project estimate💰'!D41=0,\" \",'Project estimate💰'!G41*'Project estimate💰'!D41&\" \"& Duration)","v":" "},null,{"$f":"IF('Project estimate💰'!D41=0,\"0\",'Project estimate💰'!D41)","v":"0"}]
[null,null,{"$f":"'Project estimate💰'!C42","v":"Konfigurasjon/tilpasning av kundesenter"},{"$f":"IF('Project estimate💰'!L42=0,\"0\",'Project estimate💰'!L42&\" \"&Duration)","v":"0"},{"$f":"Currency&\" \"&TEXT('Project estimate💰'!P42,\"#\\ ##0\")","v":"NOK  0"},null,{"$f":"IF('Project estimate💰'!D42=0,\" \",'Project estimate💰'!G42*'Project estimate💰'!D42&\" \"& Duration)","v":" "},null,{"$f":"IF('Project estimate💰'!D42=0,\"0\",'Project estimate💰'!D42)","v":"0"}]
[null,null,{"$f":"'Project estimate💰'!C43","v":"Test av løsning basert på arbeidsflyt"},{"$f":"IF('Project estimate💰'!L43=0,\"0\",'Project estimate💰'!L43&\" \"&Duration)","v":"0"},{"$f":"Currency&\" \"&TEXT('Project estimate💰'!P43,\"#\\ ##0\")","v":"NOK  0"},null,{"$f":"IF('Project estimate💰'!D43=0,\" \",'Project estimate💰'!G43*'Project estimate💰'!D43&\" \"& Duration)","v":" "},null,{"$f":"IF('Project estimate💰'!D43=0,\"0\",'Project estimate💰'!D43)","v":"0"}]
[null,null,{"$f":"'Project estimate💰'!C44","v":"Bistand med utarbeidelse av akseptansetest (kundens ansvar)"},{"$f":"IF('Project estimate💰'!L44=0,\"0\",'Project estimate💰'!L44&\" \"&Duration)","v":"0"},{"$f":"Currency&\" \"&TEXT('Project estimate💰'!P44,\"#\\ ##0\")","v":"NOK  0"},null,{"$f":"IF('Project estimate💰'!D44=0,\" \",'Project estimate💰'!G44*'Project estimate💰'!D44&\" \"& Duration)","v":" "},null,{"$f":"IF('Project estimate💰'!D44=0,\"0\",'Project estimate💰'!D44)","v":"0"}]
[null,null,{"$f":"'Project estimate💰'!C45","v":"Bistand i akseptansetest (kundens ansvar)"},{"$f":"IF('Project estimate💰'!L45=0,\"0\",'Project estimate💰'!L45&\" \"&Duration)","v":"0"},{"$f":"Currency&\" \"&TEXT('Project estimate💰'!P45,\"#\\ ##0\")","v":"NOK  0"},null,{"$f":"IF('Project estimate💰'!D45=0,\" \",'Project estimate💰'!G45*'Project estimate💰'!D45&\" \"& Duration)","v":" "},null,{"$f":"IF('Project estimate💰'!D45=0,\"0\",'Project estimate💰'!D45)","v":"0"}]
[null,null,{"$f":"'Project estimate💰'!C46","v":"Prototype presentasjon Full"},{"$f":"IF('Project estimate💰'!L46=0,\"0\",'Project estimate💰'!L46&\" \"&Duration)","v":"0"},{"$f":"Currency&\" \"&TEXT('Project estimate💰'!P46,\"#\\ ##0\")","v":"NOK  0"},null,{"$f":"IF('Project estimate💰'!D46=0,\" \",'Project estimate💰'!G46*'Project estimate💰'!D46&\" \"& Duration)","v":" "},null,{"$f":"IF('Project estimate💰'!D46=0,\"0\",'Project estimate💰'!D46)","v":"0"}]
[null,null,{"$f":"'Project estimate💰'!C47","v":"Custom activity"},{"$f":"IF('Project estimate💰'!L47=0,\"0\",'Project estimate💰'!L47&\" \"&Duration)","v":"0"},{"$f":"Currency&\" \"&TEXT('Project estimate💰'!P47,\"#\\ ##0\")","v":"NOK  0"},null,{"$f":"IF('Project estimate💰'!D47=0,\" \",'Project estimate💰'!G47*'Project estimate💰'!D47&\" \"& Duration)","v":" "},null,{"$f":"IF('Project estimate💰'!D47=0,\"0\",'Project estimate💰'!D47)","v":"0"}]
[null,null,{"$f":"'Project estimate💰'!C48","v":"Custom activity"},{"$f":"IF('Project estimate💰'!L48=0,\"0\",'Project estimate💰'!L48&\" \"&Duration)","v":"0"},{"$f":"Currency&\" \"&TEXT('Project estimate💰'!P48,\"#\\ ##0\")","v":"NOK  0"},null,{"$f":"IF('Project estimate💰'!D48=0,\" \",'Project estimate💰'!G48*'Project estimate💰'!D48&\" \"& Duration)","v":" "},null,{"$f":"IF('Project estimate💰'!D48=0,\"0\",'Project estimate💰'!D48)","v":"0"}]
[]
[null,null,"ONBOARDING",{"$f":"IF('Project estimate💰'!L60=0,\"0\",'Project estimate💰'!L60&\" \"&Duration)","v":"40 TIMER"},{"$f":"Currency&\" \"&TEXT('Project estimate💰'!P60,\"#\\ ##0\")","v":"NOK 62 200"},null,{"$f":"Language!$C$11","v":"MØTETID MED KUNDE"},null,{"$f":"SUM(I52:I60)","v":6}]
[null,null,{"$f":"'Project estimate💰'!C51","v":"Onboarding møte"},{"$f":"IF('Project estimate💰'!L51=0,\"0\",'Project estimate💰'!L51&\" \"&Duration)","v":"8 TIMER"},{"$f":"Currency&\" \"&TEXT('Project estimate💰'!P51,\"#\\ ##0\")","v":"NOK 12 440"},null,{"$f":"IF('Project estimate💰'!D51=0,\" \",'Project estimate💰'!G51*'Project estimate💰'!D51&\" \"& Duration)","v":"4 TIMER"},null,{"$f":"IF('Project estimate💰'!D51=0,\"0\",'Project estimate💰'!D51)","v":1}]
[null,null,{"$f":"'Project estimate💰'!C52","v":"Train the Trainer"},{"$f":"IF('Project estimate💰'!L52=0,\"0\",'Project estimate💰'!L52&\" \"&Duration)","v":"0"},{"$f":"Currency&\" \"&TEXT('Project estimate💰'!P52,\"#\\ ##0\")","v":"NOK  0"},null,{"$f":"IF('Project estimate💰'!D52=0,\" \",'Project estimate💰'!G52*'Project estimate💰'!D52&\" \"& Duration)","v":" "},null,{"$f":"IF('Project estimate💰'!D52=0,\"0\",'Project estimate💰'!D52)","v":"0"}]
[null,null,{"$f":"'Project estimate💰'!C53","v":"Bedriftstilpasset opplæring"},{"$f":"IF('Project estimate💰'!L53=0,\"0\",'Project estimate💰'!L53&\" \"&Duration)","v":"16 TIMER"},{"$f":"Currency&\" \"&TEXT('Project estimate💰'!P53,\"#\\ ##0\")","v":"NOK 24 880"},null,{"$f":"IF('Project estimate💰'!D53=0,\" \",'Project estimate💰'!G53*'Project estimate💰'!D53&\" \"& Duration)","v":"8 TIMER"},null,{"$f":"IF('Project estimate💰'!D53=0,\"0\",'Project estimate💰'!D53)","v":2}]
[null,null,{"$f":"'Project estimate💰'!C54","v":"Administrator gjennomgang"},{"$f":"IF('Project estimate💰'!L54=0,\"0\",'Project estimate💰'!L54&\" \"&Duration)","v":"8 TIMER"},{"$f":"Currency&\" \"&TEXT('Project estimate💰'!P54,\"#\\ ##0\")","v":"NOK 12 440"},null,{"$f":"IF('Project estimate💰'!D54=0,\" \",'Project estimate💰'!G54*'Project estimate💰'!D54&\" \"& Duration)","v":"8 TIMER"},null,{"$f":"IF('Project estimate💰'!D54=0,\"0\",'Project estimate💰'!D54)","v":1}]
[null,null,{"$f":"'Project estimate💰'!C55","v":"GO-Live assistanse"},{"$f":"IF('Project estimate💰'!L55=0,\"0\",'Project estimate💰'!L55&\" \"&Duration)","v":"4 TIMER"},{"$f":"Currency&\" \"&TEXT('Project estimate💰'!P55,\"#\\ ##0\")","v":"NOK 6 220"},null,{"$f":"IF('Project estimate💰'!D55=0,\" \",'Project estimate💰'!G55*'Project estimate💰'!D55&\" \"& Duration)","v":"4 TIMER"},null,{"$f":"IF('Project estimate💰'!D55=0,\"0\",'Project estimate💰'!D55)","v":1}]
[null,null,{"$f":"'Project estimate💰'!C56","v":"Sign off leveranse"},{"$f":"IF('Project estimate💰'!L56=0,\"0\",'Project estimate💰'!L56&\" \"&Duration)","v":"4 TIMER"},{"$f":"Currency&\" \"&TEXT('Project estimate💰'!P56,\"#\\ ##0\")","v":"NOK 6 220"},null,{"$f":"IF('Project estimate💰'!D56=0,\" \",'Project estimate💰'!G56*'Project estimate💰'!D56&\" \"& Duration)","v":"2 TIMER"},null,{"$f":"IF('Project estimate💰'!D56=0,\"0\",'Project estimate💰'!D56)","v":1}]
[null,null,{"$f":"'Project estimate💰'!C57","v":"Aftercare"},{"$f":"IF('Project estimate💰'!L57=0,\"0\",'Project estimate💰'!L57&\" \"&Duration)","v":"0"},{"$f":"Currency&\" \"&TEXT('Project estimate💰'!P57,\"#\\ ##0\")","v":"NOK  0"},null,{"$f":"IF('Project estimate💰'!D57=0,\" \",'Project estimate💰'!G57*'Project estimate💰'!D57&\" \"& Duration)","v":" "},null,{"$f":"IF('Project estimate💰'!D57=0,\"0\",'Project estimate💰'!D57)","v":"0"}]
[null,null,{"$f":"'Project estimate💰'!C58","v":"Custom activity"},{"$f":"IF('Project estimate💰'!L58=0,\"0\",'Project estimate💰'!L58&\" \"&Duration)","v":"0"},{"$f":"Currency&\" \"&TEXT('Project estimate💰'!P58,\"#\\ ##0\")","v":"NOK  0"},null,{"$f":"IF('Project estimate💰'!D58=0,\" \",'Project estimate💰'!G58*'Project estimate💰'!D58&\" \"& Duration)","v":" "},null,{"$f":"IF('Project estimate💰'!D58=0,\"0\",'Project estimate💰'!D58)","v":"0"}]
[null,null,{"$f":"'Project estimate💰'!C59","v":"Custom activity"},{"$f":"IF('Project estimate💰'!L59=0,\"0\",'Project estimate💰'!L59&\" \"&Duration)","v":"0"},{"$f":"Currency&\" \"&TEXT('Project estimate💰'!P59,\"#\\ ##0\")","v":"NOK  0"},null,{"$f":"IF('Project estimate💰'!D59=0,\" \",'Project estimate💰'!G59*'Project estimate💰'!D59&\" \"& Duration)","v":" "},null,{"$f":"IF('Project estimate💰'!D59=0,\"0\",'Project estimate💰'!D59)","v":"0"}]
[]
[null,null,"PROJECT PLANNING & MANAGEMENT",{"$f":"IF('Project estimate💰'!L65=0,\"0\",'Project estimate💰'!L65&\" \"&Duration)","v":"19 TIMER"},{"$f":"Currency&\" \"&TEXT('Project estimate💰'!P65,\"#\\ ##0\")","v":"NOK 29 545"},null,{"$f":"Language!$C$11","v":"MØTETID MED KUNDE"},null,{"$f":"SUM(I63:I65)","v":1}]
[null,null,{"$f":"'Project estimate💰'!C62","v":"Prosjektledelse"},{"$f":"IF('Project estimate💰'!L62=0,\"0\",'Project estimate💰'!L62&\" \"&Duration)","v":"19 TIMER"},{"$f":"Currency&\" \"&TEXT('Project estimate💰'!P62,\"#\\ ##0\")","v":"NOK 29 545"},null,{"$f":"IF('Project estimate💰'!D62=0,\" \",'Project estimate💰'!J62&\" \"& Duration)","v":"12 TIMER"},null,{"$f":"IF('Project estimate💰'!D62=0,\"0\",'Project estimate💰'!D62)","v":1}]
[null,null,{"$f":"'Project estimate💰'!C63","v":"Custom activity"},{"$f":"IF('Project estimate💰'!L63=0,\"0\",'Project estimate💰'!L63&\" \"&Duration)","v":"0"},{"$f":"Currency&\" \"&TEXT('Project estimate💰'!P63,\"#\\ ##0\")","v":"NOK  0"},null,{"$f":"IF('Project estimate💰'!D63=0,\" \",'Project estimate💰'!G63*'Project estimate💰'!D63&\" \"& Duration)","v":" "},null,{"$f":"IF('Project estimate💰'!D63=0,\"0\",'Project estimate💰'!D63)","v":"0"}]
[null,null,{"$f":"'Project estimate💰'!C64","v":"Custom activity"},{"$f":"IF('Project estimate💰'!L64=0,\"0\",'Project estimate💰'!L64&\" \"&Duration)","v":"0"},{"$f":"Currency&\" \"&TEXT('Project estimate💰'!P64,\"#\\ ##0\")","v":"NOK  0"},null,{"$f":"IF('Project estimate💰'!D64=0,\" \",'Project estimate💰'!G64*'Project estimate💰'!D64&\" \"& Duration)","v":" "},null,{"$f":"IF('Project estimate💰'!D64=0,\"0\",'Project estimate💰'!D64)","v":"0"}]
[]
[null,null,{"$f":"Sum","v":"TOTALT"},{"$f":"'Project estimate💰'!L67&\" \"&Duration","v":"141 TIMER"},{"$f":"Currency&\" \"&TEXT('Project estimate💰'!P67,\"#\\ ##0\")","v":"NOK 219 255"},null,{"$f":"'Project estimate💰'!J67&\" \"&Duration","v":"88 TIMER"}]

{"sheet":"Project estimate - Description","index":3,"n_rows":67,"n_cols":5,"rows_kept":67,"cut":false,"hidden":true,"merged":[]}
[]
[null,"PROJECT"]
[null,"BREAKDOWN"]
[]
[null,null,"IDENTIFY",{"$f":"IF('Project estimate💰'!J8=0,\"0\",'Project estimate💰'!J8&\" HOURS\")","v":"0"},{"$f":"Currency&\" \"&TEXT('Project estimate💰'!P8,\"#\\ ##0\")","v":"NOK  0"}]
[null,null,{"$f":"'Project estimate💰'!C5&CHAR(10)&'Project estimate💰'!S5","v":"Løsningsbeskrivelse\n0"},{"$f":"IF('Project estimate💰'!J5=0,\"0\",'Project estimate💰'!J5&\" HOURS\")","v":"0"},{"$f":"Currency&\" \"&TEXT('Project estimate💰'!P5,\"#\\ ##0\")","v":"NOK  0"}]
[null,null,{"$f":"'Project estimate💰'!C6&CHAR(10)&'Project estimate💰'!S6","v":"Custom activity\n"},{"$f":"IF('Project estimate💰'!J6=0,\"0\",'Project estimate💰'!J6&\" HOURS\")","v":"0"},{"$f":"Currency&\" \"&TEXT('Project estimate💰'!P6,\"#\\ ##0\")","v":"NOK  0"}]
[null,null,{"$f":"'Project estimate💰'!C7&CHAR(10)&'Project estimate💰'!S7","v":"Custom activity\n"},{"$f":"IF('Project estimate💰'!J7=0,\"0\",'Project estimate💰'!J7&\" HOURS\")","v":"0"},{"$f":"Currency&\" \"&TEXT('Project estimate💰'!P7,\"#\\ ##0\")","v":"NOK  0"}]
[]
[null,null,"INITIATE",{"$f":"IF('Project estimate💰'!J14=0,\"0\",'Project estimate💰'!J14&\" \"&Duration)","v":"2 TIMER"},{"$f":"Currency&\" \"&TEXT('Project estimate💰'!P14,\"#\\ ##0\")","v":"NOK 9 330"}]
[null,null,{"$f":"'Project estimate💰'!C10&CHAR(10)&'Project estimate💰'!S10","v":"Verdi workshop\nSkape enighet om hvorfor vi gjør dette og hvordan dette støtter strategien. Opparbeide en felles forståelse for og sterk forankring av prosjektets omfang og leveranser i ledergruppen. Kartlegge de 3-5 viktigste KPIer som forretningen navigerer og prioriterer etter."},{"$f":"IF('Project estimate💰'!J10=0,\"0\",'Project estimate💰'!J10&\" \"&Duration)","v":"0"},{"$f":"Currency&\" \"&TEXT('Project estimate💰'!P10,\"#\\ ##0\")","v":"NOK  0"}]
[null,null,{"$f":"'Project estimate💰'!C11&CHAR(10)&'Project estimate💰'!S11","v":"Kick-Off møte\nSkape felles forståelse av prosjektets omfang, leveranser og nøkkel KPI. Definere organisering av prosjektet og mobilisere kjerneteam.Forberede designfasen (Hva trenger vi fra de - hvem ønsker vi at skal delta)."},{"$f":"IF('Project estimate💰'!J11=0,\"0\",'Project estimate💰'!J11&\" \"&Duration)","v":"2 TIMER"},{"$f":"Currency&\" \"&TEXT('Project estimate💰'!P11,\"#\\ ##0\")","v":"NOK 9 330"}]
[null,null,{"$f":"'Project estimate💰'!C12&CHAR(10)&'Project estimate💰'!S12","v":"Custom activity\n"},{"$f":"IF('Project estimate💰'!J12=0,\"0\",'Project estimate💰'!J12&\" \"& Duration)","v":"0"},{"$f":"Currency&\" \"&TEXT('Project estimate💰'!P12,\"#\\ ##0\")","v":"NOK  0"}]
[null,null,{"$f":"'Project estimate💰'!C13&CHAR(10)&'Project estimate💰'!S13","v":"Custom activity\n"},{"$f":"IF('Project estimate💰'!J13=0,\"0\",'Project estimate💰'!J13&\" \"&Duration)","v":"0"},{"$f":"Currency&\" \"&TEXT('Project estimate💰'!P13,\"#\\ ##0\")","v":"NOK  0"}]
[]
[null,null,"DESIGN",{"$f":"IF('Project estimate💰'!J28=0,\"0\",'Project estimate💰'!J28&\" \"&Duration)","v":"24 TIMER"},{"$f":"Currency&\" \"&TEXT('Project estimate💰'!P28,\"#\\ ##0\")","v":"NOK 80 860"}]
[null,null,{"$f":"'Project estimate💰'!C16&CHAR(10)&'Project estimate💰'!S16","v":"KPI workshop\nOmsette de viktigste måleparameter til leading og lagging KPIer. Kvalifisere KPI, hvordan omsetter vi dette til SO og kan vi måle og følge opp dette. Hvilke dashboards trenger vi for å kunne omsette data til innsikt. Hvem er ansvarlig for datainnsamling, kvalifisering og SO hos kunden."},{"$f":"IF('Project estimate💰'!J16=0,\"0\",'Project estimate💰'!J16&\" \"&Duration)","v":"8 TIMER"},{"$f":"Currency&\" \"&TEXT('Project estimate💰'!P16,\"#\\ ##0\")","v":"NOK 24 880"}]
[null,null,{"$f":"'Project estimate💰'!C17&CHAR(10)&'Project estimate💰'!S17","v":"Arbeidsflyt workshop\nForberede designfasen (Hva trenger vi fra de - hvem ønsker vi at skal delta)."},{"$f":"IF('Project estimate💰'!J17=0,\"0\",'Project estimate💰'!J17&\" \"&Duration)","v":"8 TIMER"},{"$f":"Currency&\" \"&TEXT('Project estimate💰'!P17,\"#\\ ##0\")","v":"NOK 31 100"}]
[null,null,{"$f":"'Project estimate💰'!C18&CHAR(10)&'Project estimate💰'!S18","v":"Konfigurasjonsworkshop\nWorkshop med 2 konsulenter fasilitert digitalt via Miro eller fysisk etter Brown Paper metoden. Formålet med workshopen er å komme frem til en best mulig utforming og konfigurasjon for SuperOffice CRM. Vi fokuserer på at systemet må støtte forretningsprosessen (definert i Workflow workshop) og dekke behovet for brukerstøtte og rapportering i organisasjonen. Databasen konfigureres og alt dokumenteres."},{"$f":"IF('Project estimate💰'!J18=0,\"0\",'Project estimate💰'!J18&\" \"&Duration)","v":"4 TIMER"},{"$f":"Currency&\" \"&TEXT('Project estimate💰'!P18,\"#\\ ##0\")","v":"NOK 18 660"}]
[null,null,{"$f":"'Project estimate💰'!C19&CHAR(10)&'Project estimate💰'!S19","v":"CRM Script spesifikasjon\nFormålet med CRMScript-workshopen er at vi sammen avdekker deres behov for automatisering av prosesser, for å sikre datakvalitet og for spesialtilpassing av SuperOffice. Utvikling av script estimeres på bakgrunn av denne aktiviteten. "},{"$f":"IF('Project estimate💰'!J19=0,\"0\",'Project estimate💰'!J19&\" \"&Duration)","v":"0"},{"$f":"Currency&\" \"&TEXT('Project estimate💰'!P19,\"#\\ ##0\")","v":"NOK  0"}]
[null,null,{"$f":"'Project estimate💰'!C20&CHAR(10)&'Project estimate💰'!S20","v":"Importspesifikasjon\nEt arbeidsmøte hvor man går igjennom importbehovene. Formålet er en oversikt over hvilke felt som skal importeres og hvor disse skal synliggjøres i SuperOffice. Gjennomføring av selve importen estimeres på bakgrunn av denne aktiviteten. "},{"$f":"IF('Project estimate💰'!J20=0,\"0\",'Project estimate💰'!J20&\" \"&Duration)","v":"0"},{"$f":"Currency&\" \"&TEXT('Project estimate💰'!P20,\"#\\ ##0\")","v":"NOK  0"}]
[null,null,{"$f":"'Project estimate💰'!C21&CHAR(10)&'Project estimate💰'!S21","v":"Data synkroniseringsspesifikasjon\nFormålet med Synkroniserings spesifikasjonen er at vi sammen avdekker deres behov for jevnlig utveksling av data (filer) ved bruk av InfoBridge sin app DataBridge. Konfigurasjon og oppsett av eksport/import estimeres på bakgrunn av denne aktiviteten."},{"$f":"IF('Project estimate💰'!J21=0,\"0\",'Project estimate💰'!J21&\" \"&Duration)","v":"0"},{"$f":"Currency&\" \"&TEXT('Project estimate💰'!P21,\"#\\ ##0\")","v":"NOK  0"}]
[null,null,{"$f":"'Project estimate💰'!C22&CHAR(10)&'Project estimate💰'!S22","v":"Kundesenter spesifikasjon (CEP)\nFormålet med workshopen er at vi sammen avdekker deres behov for kundetilpasset oppsett og funksjonalitet på Kundesenteret. Dette dokumenteres og evt. utvikling estimeres på bakgrunn av denne aktiviteten. "},{"$f":"IF('Project estimate💰'!J22=0,\"0\",'Project estimate💰'!J22&\" \"&Duration)","v":"0"},{"$f":"Currency&\" \"&TEXT('Project estimate💰'!P22,\"#\\ ##0\")","v":"NOK  0"}]
[null,null,{"$f":"'Project estimate💰'!C23&CHAR(10)&'Project estimate💰'!S23","v":"AI spesifikasjon\nIkke tilgjengelig enda"},{"$f":"IF('Project estimate💰'!J23=0,\"0\",'Project estimate💰'!J23&\" \"&Duration)","v":"0"},{"$f":"Currency&\" \"&TEXT('Project estimate💰'!P23,\"#\\ ##0\")","v":"NOK  0"}]
[null,null,{"$f":"'Project estimate💰'!C24&CHAR(10)&'Project estimate💰'!S24","v":"Prototype presentasjon Lite\nKonfigurert løsning presenteres kunden og definert arbeidsprosess/flyt demonstreres. Løsningen godkjennes, behov for evt. endringer konkretiseres."},{"$f":"IF('Project estimate💰'!J24=0,\"0\",'Project estimate💰'!J24&\" \"&Duration)","v":"4 TIMER"},{"$f":"Currency&\" \"&TEXT('Project estimate💰'!P24,\"#\\ ##0\")","v":"NOK 6 220"}]
[null,null,{"$f":"'Project estimate💰'!C25&CHAR(10)&'Project estimate💰'!S25","v":"Custom activity\n"},{"$f":"IF('Project estimate💰'!J25=0,\"0\",'Project estimate💰'!J25&\" \"&Duration)","v":"0"},{"$f":"Currency&\" \"&TEXT('Project estimate💰'!P25,\"#\\ ##0\")","v":"NOK  0"}]
[null,null,{"$f":"'Project estimate💰'!C26&CHAR(10)&'Project estimate💰'!S26","v":"Custom activity\n"},{"$f":"IF('Project estimate💰'!J26=0,\"0\",'Project estimate💰'!J26&\" \"&Duration)","v":"0"},{"$f":"Currency&\" \"&TEXT('Project estimate💰'!P26,\"#\\ ##0\")","v":"NOK  0"}]
[null,null,{"$f":"'Project estimate💰'!C27&CHAR(10)&'Project estimate💰'!S27","v":"Custom activity\n"},{"$f":"IF('Project estimate💰'!J27=0,\"0\",'Project estimate💰'!J27&\" \"&Duration)","v":"0"},{"$f":"Currency&\" \"&TEXT('Project estimate💰'!P27,\"#\\ ##0\")","v":"NOK  0"}]
[]
[null,null,"IMPLEMENT",{"$f":"_xlfn.IFS('Project estimate💰'!L49=0,\"0\",'Project estimate💰'!L49=IsEstimated,IsEstimated,'Project estimate💰'!L49>0,'Project estimate💰'!L49&\" \"&Duration)","v":"24 TIMER"},{"$f":"Currency&\" \"&TEXT('Project estimate💰'!P49,\"#\\ ##0\")","v":"NOK 37 320"}]
[null,null,{"$f":"'Project estimate💰'!C30&CHAR(10)&'Project estimate💰'!S30","v":"Installasjon av SuperOffice og teknisk avklaring (On site)\nForberedelser og gjennomføring av installasjon av SuperOffice på kundens egne servere."},{"$f":"_xlfn.IFS('Project estimate💰'!L30=0,\"0\",'Project estimate💰'!L30=IsEstimated,IsEstimated,'Project estimate💰'!L30>0,'Project estimate💰'!L30&\" \"&Duration)","v":"0"},{"$f":"Currency&\" \"&TEXT('Project estimate💰'!P30,\"#\\ ##0\")","v":"NOK  0"}]
[null,null,{"$f":"'Project estimate💰'!C31&CHAR(10)&'Project estimate💰'!S31","v":"Installasjon av Exchange Synchronizer (On site)\nForberedelser og gjennomføring av installasjon av Exchange Synchronizer på kundens egne servere."},{"$f":"_xlfn.IFS('Project estimate💰'!L31=0,\"0\",'Project estimate💰'!L31=IsEstimated,IsEstimated,'Project estimate💰'!L31>0,'Project estimate💰'!L31&\" \"&Duration)","v":"0"},{"$f":"Currency&\" \"&TEXT('Project estimate💰'!P31,\"#\\ ##0\")","v":"NOK  0"}]
[null,null,{"$f":"'Project estimate💰'!C32&CHAR(10)&'Project estimate💰'!S32","v":"Installasjon av klienter / Oppsett av brukere\nBistand til installasjon av SuperOffice klient på brukernes maskiner."},{"$f":"_xlfn.IFS('Project estimate💰'!L32=0,\"0\",'Project estimate💰'!L32=IsEstimated,IsEstimated,'Project estimate💰'!L32>0,'Project estimate💰'!L32&\" \"&Duration)","v":"0"},{"$f":"Currency&\" \"&TEXT('Project estimate💰'!P32,\"#\\ ##0\")","v":"NOK  0"}]
[null,null,{"$f":"'Project estimate💰'!C33&CHAR(10)&'Project estimate💰'!S33","v":"Oppsett konfigurasjon av Synchronizer for SuperOffice\nBistand til oppsett og konfigurasjon av Synchronizer for SuperOffice."},{"$f":"_xlfn.IFS('Project estimate💰'!L33=0,\"0\",'Project estimate💰'!L33=IsEstimated,IsEstimated,'Project estimate💰'!L33>0,'Project estimate💰'!L33&\" \"&Duration)","v":"4 TIMER"},{"$f":"Currency&\" \"&TEXT('Project estimate💰'!P33,\"#\\ ##0\")","v":"NOK 6 220"}]
[null,null,{"$f":"'Project estimate💰'!C34&CHAR(10)&'Project estimate💰'!S34","v":"Bistand i oppsett av ekstra maler eller tilbudsmaler\nFormålet er at vi sammen går igjennom de maler dere ønsker i SuperOffice. Vi bistår med å få på plass malvariabler slik at informasjon automatisk fylles ut når man skriver dokumenter fra SuperOffice.  "},{"$f":"_xlfn.IFS('Project estimate💰'!L34=0,\"0\",'Project estimate💰'!L34=IsEstimated,IsEstimated,'Project estimate💰'!L34>0,'Project estimate💰'!L34&\" \"&Duration)","v":"8 TIMER"},{"$f":"Currency&\" \"&TEXT('Project estimate💰'!P34,\"#\\ ##0\")","v":"NOK 12 440"}]
[null,null,{"$f":"'Project estimate💰'!C35&CHAR(10)&'Project estimate💰'!S35","v":"Oppsett og opplæring i Utsendelser og Webskjemaer\nOppsett, gjennomgang og opplæring i utsendelser og webskjema."},{"$f":"_xlfn.IFS('Project estimate💰'!L35=0,\"0\",'Project estimate💰'!L35=IsEstimated,IsEstimated,'Project estimate💰'!L35>0,'Project estimate💰'!L35&\" \"&Duration)","v":"0"},{"$f":"Currency&\" \"&TEXT('Project estimate💰'!P35,\"#\\ ##0\")","v":"NOK  0"}]
[null,null,{"$f":"'Project estimate💰'!C36&CHAR(10)&'Project estimate💰'!S36","v":"Chat konfigurasjon og opplæring\nVi konfigurerer løsning og sørger for at dere får korrekt utseende og oppførsel på Chat widgeten dere plasserer på hjemmesiden deres. Deretter lærer vi dere hvordan dette benyttes. "},{"$f":"_xlfn.IFS('Project estimate💰'!L36=0,\"0\",'Project estimate💰'!L36=IsEstimated,IsEstimated,'Project estimate💰'!L36>0,'Project estimate💰'!L36&\" \"&Duration)","v":"0"},{"$f":"Currency&\" \"&TEXT('Project estimate💰'!P36,\"#\\ ##0\")","v":"NOK  0"}]
[null,null,{"$f":"'Project estimate💰'!C39&CHAR(10)&'Project estimate💰'!S39","v":"Utvikling av CRMScript\nSuperOffice utvikler script basert ihht spesifikasjon (DE04)"},{"$f":"_xlfn.IFS('Project estimate💰'!L39=0,\"0\",'Project estimate💰'!L39=IsEstimated,IsEstimated,'Project estimate💰'!L39>0,'Project estimate💰'!L39&\" \"&Duration)","v":"0"},{"$f":"Currency&\" \"&TEXT('Project estimate💰'!P39,\"#\\ ##0\")","v":"NOK  0"}]
[null,null,{"$f":"'Project estimate💰'!C40&CHAR(10)&'Project estimate💰'!S40","v":"Import av data\nSuperOffice utfører import av data ihht spesifikasjon (DE05)"},{"$f":"_xlfn.IFS('Project estimate💰'!L40=0,\"0\",'Project estimate💰'!L40=IsEstimated,IsEstimated,'Project estimate💰'!L40>0,'Project estimate💰'!L40&\" \"&Duration)","v":"0"},{"$f":"Currency&\" \"&TEXT('Project estimate💰'!P40,\"#\\ ##0\")","v":"NOK  0"}]
[null,null,{"$f":"'Project estimate💰'!C41&CHAR(10)&'Project estimate💰'!S41","v":"Oppsett av datasynkronisering (DataBridge)\nSuperOffice konfigurerer data synkronisering ihht spesifikasjon (DE06)"},{"$f":"_xlfn.IFS('Project estimate💰'!L41=0,\"0\",'Project estimate💰'!L41=IsEstimated,IsEstimated,'Project estimate💰'!L41>0,'Project estimate💰'!L41&\" \"&Duration)","v":"0"},{"$f":"Currency&\" \"&TEXT('Project estimate💰'!P41,\"#\\ ##0\")","v":"NOK  0"}]
[null,null,{"$f":"'Project estimate💰'!C42&CHAR(10)&'Project estimate💰'!S42","v":"Konfigurasjon/tilpasning av kundesenter\nSuperOffice konfigurerer og tilpasser kundesenteret ihht spesifikasjon (DE07)"},{"$f":"_xlfn.IFS('Project estimate💰'!L42=0,\"0\",'Project estimate💰'!L42=IsEstimated,IsEstimated,'Project estimate💰'!L42>0,'Project estimate💰'!L42&\" \"&Duration)","v":"0"},{"$f":"Currency&\" \"&TEXT('Project estimate💰'!P42,\"#\\ ##0\")","v":"NOK  0"}]
[null,null,{"$f":"'Project estimate💰'!C43&CHAR(10)&'Project estimate💰'!S43","v":"Test av løsning basert på arbeidsflyt\n0"},{"$f":"_xlfn.IFS('Project estimate💰'!L43=0,\"0\",'Project estimate💰'!L43=IsEstimated,IsEstimated,'Project estimate💰'!L43>0,'Project estimate💰'!L43&\" \"&Duration)","v":"0"},{"$f":"Currency&\" \"&TEXT('Project estimate💰'!P43,\"#\\ ##0\")","v":"NOK  0"}]
[null,null,{"$f":"'Project estimate💰'!C44&CHAR(10)&'Project estimate💰'!S44","v":"Bistand med utarbeidelse av akseptansetest (kundens ansvar)\n0"},{"$f":"_xlfn.IFS('Project estimate💰'!L44=0,\"0\",'Project estimate💰'!L44=IsEstimated,IsEstimated,'Project estimate💰'!L44>0,'Project estimate💰'!L44&\" \"&Duration)","v":"0"},{"$f":"Currency&\" \"&TEXT('Project estimate💰'!P44,\"#\\ ##0\")","v":"NOK  0"}]
[null,null,{"$f":"'Project estimate💰'!C45&CHAR(10)&'Project estimate💰'!S45","v":"Bistand i akseptansetest (kundens ansvar)\n0"},{"$f":"_xlfn.IFS('Project estimate💰'!L45=0,\"0\",'Project estimate💰'!L45=IsEstimated,IsEstimated,'Project estimate💰'!L45>0,'Project estimate💰'!L45&\" \"&Duration)","v":"0"},{"$f":"Currency&\" \"&TEXT('Project estimate💰'!P45,\"#\\ ##0\")","v":"NOK  0"}]
[null,null,{"$f":"'Project estimate💰'!C46&CHAR(10)&'Project estimate💰'!S46","v":"Prototype presentasjon Full\nFull løsning presenteres kunde. Dette inkluderer importerte eller synkroniserte data og eventuelle integrasjoner og tilpasninger. Løsningen godkjennes, behov for evt. endringer konkretiseres."},{"$f":"_xlfn.IFS('Project estimate💰'!L46=0,\"0\",'Project estimate💰'!L46=IsEstimated,IsEstimated,'Project estimate💰'!L46>0,'Project estimate💰'!L46&\" \"&Duration)","v":"0"},{"$f":"Currency&\" \"&TEXT('Project estimate💰'!P46,\"#\\ ##0\")","v":"NOK  0"}]
[null,null,{"$f":"'Project estimate💰'!C47&CHAR(10)&'Project estimate💰'!S47","v":"Custom activity\n"},{"$f":"_xlfn.IFS('Project estimate💰'!L47=0,\"0\",'Project estimate💰'!L47=IsEstimated,IsEstimated,'Project estimate💰'!L47>0,'Project estimate💰'!L47&\" \"&Duration)","v":"0"},{"$f":"Currency&\" \"&TEXT('Project estimate💰'!P47,\"#\\ ##0\")","v":"NOK  0"}]
[null,null,{"$f":"'Project estimate💰'!C48&CHAR(10)&'Project estimate💰'!S48","v":"Custom activity\n"},{"$f":"_xlfn.IFS('Project estimate💰'!L48=0,\"0\",'Project estimate💰'!L48=IsEstimated,IsEstimated,'Project estimate💰'!L48>0,'Project estimate💰'!L48&\" \"&Duration)","v":"0"},{"$f":"Currency&\" \"&TEXT('Project estimate💰'!P48,\"#\\ ##0\")","v":"NOK  0"}]
[]
[null,null,"ONBOARDING",{"$f":"IF('Project estimate💰'!L60=0,\"0\",'Project estimate💰'!L60&\" \"&Duration)","v":"40 TIMER"},{"$f":"Currency&\" \"&TEXT('Project estimate💰'!P60,\"#\\ ##0\")","v":"NOK 62 200"}]
[null,null,{"$f":"'Project estimate💰'!C51&CHAR(10)&'Project estimate💰'!S51","v":"Onboarding møte\nSikre at organisasjonen (kjerneteam) er klare til å fasilitere endringsreisen og sikre varig effekt av SuperOffice. Identifisere de tradisjonelle motstandere i endringer og hvordan ivaretar vi de. Utarbeide plan sammen med kjerneteam for å sikre at endringsreisen ivaretas også på sikt"},{"$f":"IF('Project estimate💰'!L51=0,\"0\",'Project estimate💰'!L51&\" \"&Duration)","v":"8 TIMER"},{"$f":"Currency&\" \"&TEXT('Project estimate💰'!P51,\"#\\ ##0\")","v":"NOK 12 440"}]
[null,null,{"$f":"'Project estimate💰'!C52&CHAR(10)&'Project estimate💰'!S52","v":"Train the Trainer\nTrene kjerneteam i å trene organisasjonen i SuperOffice. Samtidig vil kjerneteam oppnå økt kompetanse i SuperOffice administrasjon og bruk. Forberede utrullingsplan og personlig plan med kjerneteam."},{"$f":"IF('Project estimate💰'!L52=0,\"0\",'Project estimate💰'!L52&\" \"&Duration)","v":"0"},{"$f":"Currency&\" \"&TEXT('Project estimate💰'!P52,\"#\\ ##0\")","v":"NOK  0"}]
[null,null,{"$f":"'Project estimate💰'!#REF!&CHAR(10)&'Project estimate💰'!#REF!","v":{"$error":"#REF!"}},{"$f":"IF('Project estimate💰'!#REF!=0,\"0\",'Project estimate💰'!#REF!&\" \"&Duration)","v":{"$error":"#REF!"}},{"$f":"Currency&\" \"&TEXT('Project estimate💰'!#REF!,\"#\\ ##0\")","v":{"$error":"#REF!"}}]
[null,null,{"$f":"'Project estimate💰'!C53&CHAR(10)&'Project estimate💰'!S53","v":"Bedriftstilpasset opplæring\nSuperOffice utarbeider et opplæringsprogram som er tilpasset deres organisasjon. Kurslederen vil på bakgrunn av de behov dere har definert, tilpasse et eget kursopplegg. Vår erfaring tilsier at det beste læringsresultatet er når kurset holdes på egen database. "},{"$f":"IF('Project estimate💰'!L53=0,\"0\",'Project estimate💰'!L53&\" \"&Duration)","v":"16 TIMER"},{"$f":"Currency&\" \"&TEXT('Project estimate💰'!P53,\"#\\ ##0\")","v":"NOK 24 880"}]
[null,null,{"$f":"'Project estimate💰'!C54&CHAR(10)&'Project estimate💰'!S54","v":"Administrator gjennomgang\nEt kurs i hvordan SuperOffice administreres. Kurset vil gi deg innsikt i hvordan SuperOffice kan tilpasses og optimaliseres til din bedrift. Teamaer som gjennomgås er blandt annet:  brukerrettigheter for ansatte, brukergrensesnitt, brukerdefinerte felt, import, web paneler og dokumentmaler. "},{"$f":"IF('Project estimate💰'!L54=0,\"0\",'Project estimate💰'!L54&\" \"&Duration)","v":"8 TIMER"},{"$f":"Currency&\" \"&TEXT('Project estimate💰'!P54,\"#\\ ##0\")","v":"NOK 12 440"}]
[null,null,{"$f":"'Project estimate💰'!C55&CHAR(10)&'Project estimate💰'!S55","v":"GO-Live assistanse\nFormålet med denne aktiviteten er å få alle brukere skikkelig i gang med løsningen. Er det ting som dukker opp ved oppstart har dere en konsulent til stede eller remote som kan bistå dersom det skulle være noe eller dere trenger annen rådgivning i oppstartsfasen. "},{"$f":"IF('Project estimate💰'!L55=0,\"0\",'Project estimate💰'!L55&\" \"&Duration)","v":"4 TIMER"},{"$f":"Currency&\" \"&TEXT('Project estimate💰'!P55,\"#\\ ##0\")","v":"NOK 6 220"}]
[null,null,{"$f":"'Project estimate💰'!C56&CHAR(10)&'Project estimate💰'!S56","v":"Sign off leveranse\nKoordinering av leveransen mot kundens prosjektleder/ansvarlig samt en signering på at leveransen er avsluttet. "},{"$f":"IF('Project estimate💰'!L56=0,\"0\",'Project estimate💰'!L56&\" \"&Duration)","v":"4 TIMER"},{"$f":"Currency&\" \"&TEXT('Project estimate💰'!P56,\"#\\ ##0\")","v":"NOK 6 220"}]
[null,null,{"$f":"'Project estimate💰'!C57&CHAR(10)&'Project estimate💰'!S57","v":"Aftercare\n0"},{"$f":"IF('Project estimate💰'!L57=0,\"0\",'Project estimate💰'!L57&\" \"&Duration)","v":"0"},{"$f":"Currency&\" \"&TEXT('Project estimate💰'!P57,\"#\\ ##0\")","v":"NOK  0"}]
[null,null,{"$f":"'Project estimate💰'!C58&CHAR(10)&'Project estimate💰'!S58","v":"Custom activity\n"},{"$f":"IF('Project estimate💰'!L58=0,\"0\",'Project estimate💰'!L58&\" \"&Duration)","v":"0"},{"$f":"Currency&\" \"&TEXT('Project estimate💰'!P58,\"#\\ ##0\")","v":"NOK  0"}]
[null,null,{"$f":"'Project estimate💰'!C59&CHAR(10)&'Project estimate💰'!S59","v":"Custom activity\n"},{"$f":"IF('Project estimate💰'!L59=0,\"0\",'Project estimate💰'!L59&\" \"&Duration)","v":"0"},{"$f":"Currency&\" \"&TEXT('Project estimate💰'!P59,\"#\\ ##0\")","v":"NOK  0"}]
[]
[null,null,"PROJECT PLANNING & MANAGEMENT",{"$f":"IF('Project estimate💰'!L65=0,\"0\",'Project estimate💰'!L65&\" \"&Duration)","v":"19 TIMER"},{"$f":"Currency&\" \"&TEXT('Project estimate💰'!P65,\"#\\ ##0\")","v":"NOK 29 545"}]
[null,null,{"$f":"'Project estimate💰'!C62&CHAR(10)&'Project estimate💰'!S62","v":"Prosjektledelse\nPlanlegging av prosjektet i samarbeid med kundens prosjektleder. Oppgavene er bl.a. å utarbeide prosjektplan og allokere ressurser."},{"$f":"IF('Project estimate💰'!L62=0,\"0\",'Project estimate💰'!L62&\" \"&Duration)","v":"19 TIMER"},{"$f":"Currency&\" \"&TEXT('Project estimate💰'!P62,\"#\\ ##0\")","v":"NOK 29 545"}]
[null,null,{"$f":"'Project estimate💰'!#REF!&CHAR(10)&'Project estimate💰'!#REF!","v":{"$error":"#REF!"}},{"$f":"IF('Project estimate💰'!#REF!=0,\"0\",'Project estimate💰'!#REF!&\" \"&Duration)","v":{"$error":"#REF!"}},{"$f":"Currency&\" \"&TEXT('Project estimate💰'!#REF!,\"#\\ ##0\")","v":{"$error":"#REF!"}}]
[null,null,{"$f":"'Project estimate💰'!C63&CHAR(10)&'Project estimate💰'!S63","v":"Custom activity\n"},{"$f":"IF('Project estimate💰'!L63=0,\"0\",'Project estimate💰'!L63&\" \"&Duration)","v":"0"},{"$f":"Currency&\" \"&TEXT('Project estimate💰'!P63,\"#\\ ##0\")","v":"NOK  0"}]
[null,null,{"$f":"'Project estimate💰'!C64&CHAR(10)&'Project estimate💰'!S64","v":"Custom activity\n"},{"$f":"IF('Project estimate💰'!L64=0,\"0\",'Project estimate💰'!L64&\" \"&Duration)","v":"0"},{"$f":"Currency&\" \"&TEXT('Project estimate💰'!P64,\"#\\ ##0\")","v":"NOK  0"}]
[]
[null,null,{"$f":"Sum","v":"TOTALT"},{"$f":"'Project estimate💰'!L67&\" \"&Duration","v":"141 TIMER"},{"$f":"Currency&\" \"&TEXT('Project estimate💰'!P67,\"#\\ ##0\")","v":"NOK 219 255"}]

{"sheet":"Language","index":4,"n_rows":67,"n_cols":18,"rows_kept":67,"cut":false,"hidden":true,"merged":[]}
[]
[null,"SETTINGS"]
[null,"LANGUAGE"]
[]
[null,"Select language",{"$f":"Frontpage🛠️!D12","v":"NO"}]
[]
[null,"Labels","Current language",null,"English","Norwegian","Swedish","Danish","German","Swizz","Dutch"]
[null,null,{"$f":"_xlfn.SWITCH(Language,\"EN\",E8,\"NO\",F8,\"SE\",G8,\"DK\",H8,\"DE\",I8,\"CH\",J8,\"NL\",K8,)","v":"TOTALT"},null,"TOTAL","TOTALT","TOTALT","I ALT","GESAMT","GESAMT","TOTAAL"]
[null,null,{"$f":"_xlfn.SWITCH(Language,\"EN\",E9,\"NO\",F9,\"SE\",G9,\"DK\",H9,\"DE\",I9,\"CH\",J9,\"NL\",K9,)","v":"TIMER"},null,"HOURS","TIMER","TIMMAR","TIMER","STUNDEN","STUNDEN","UUR"]
[null,null,{"$f":"_xlfn.SWITCH(Language,\"EN\",E10,\"NO\",F10,\"SE\",G10,\"DK\",H10,\"DE\",I10,\"CH\",J10,\"NL\",K10,)","v":"Ukjent"},null,"Unknown","Ukjent","Okänt","Ukendt","Unbekannt","Unbekannt","Onbekend"]
[null,null,{"$f":"_xlfn.SWITCH(Language,\"EN\",E11,\"NO\",F11,\"SE\",G11,\"DK\",H11,\"DE\",I11,\"CH\",J11,\"NL\",K11,)","v":"MØTETID MED KUNDE"},null,"TIME WITH CUSTOMER","MØTETID MED KUNDE","TID MED KUNDEN","TID HOS KUNDEN","ZEIT BEIM KUNDEN","ZEIT BEIM KUNDEN","TIJD MET KLANT"]
[null,null,{"$f":"_xlfn.SWITCH(Language,\"EN\",E12,\"NO\",F12,\"SE\",G12,\"DK\",H12,\"DE\",I12,\"CH\",J12,\"NL\",K12,)","v":"Gjennomføringer"},null,"Executions","Gjennomføringer","Utföranden","Udførelser","Durchführung","Durchführung","Uitvoeringen"]
[null,null,{"$f":"_xlfn.SWITCH(Language,\"EN\",E13,\"NO\",F13,\"SE\",G13,\"DK\",H13,\"DE\",I13,\"CH\",J13,\"NL\",K13,)","v":"Konsulenter"},null,"Consultants","Konsulenter","Konsulter","Konsulenter","Berater","Berater","Consultants"]
[null,null,{"$f":"_xlfn.SWITCH(Language,\"EN\",E14,\"NO\",F14,\"SE\",G14,\"DK\",H14,\"DE\",I14,\"CH\",J14,\"NL\",K14,)","v":"Forberedelser"},null,"Preparations","Forberedelser","Förberedelser","Forberedelser","Vorbereitungen","Vorbereitungen","Voorbereidingen"]
[null,null,{"$f":"_xlfn.SWITCH(Language,\"EN\",E15,\"NO\",F15,\"SE\",G15,\"DK\",H15,\"DE\",I15,\"CH\",J15,\"NL\",K15,)","v":"Gjennomføring"},null,"Execution","Gjennomføring","Utförande","Udførelse","Durchführung","Durchführung","Uitvoering"]
[null,null,{"$f":"_xlfn.SWITCH(Language,\"EN\",E16,\"NO\",F16,\"SE\",G16,\"DK\",H16,\"DE\",I16,\"CH\",J16,\"NL\",K16,)","v":"Etterarbeid"},null,"Follow up","Etterarbeid","Uppföljning","Opfølgning","Nachfassen","Nachfassen","Vervolgactiviteit"]
[null,null,{"$f":"_xlfn.SWITCH(Language,\"EN\",E17,\"NO\",F17,\"SE\",G17,\"DK\",H17,\"DE\",I17,\"CH\",J17,\"NL\",K17,)","v":"Forberedelser - Total"},null,"Preparations - Total","Forberedelser - Total","Förberedelser - Totalt","Forberedelser – i alt","Vorbereitungen – gesamt","Vorbereitungen – gesamt","Voorbereidingen - Totaal"]
[null,null,{"$f":"_xlfn.SWITCH(Language,\"EN\",E18,\"NO\",F18,\"SE\",G18,\"DK\",H18,\"DE\",I18,\"CH\",J18,\"NL\",K18,)","v":"Gjennomføring - Total"},null,"Execution - Total","Gjennomføring - Total","Utförande - Totalt","Udførelse – i alt","Durchführung – gesamt","Durchführung – gesamt","Uitvoering - Totaal"]
[null,null,{"$f":"_xlfn.SWITCH(Language,\"EN\",E19,\"NO\",F19,\"SE\",G19,\"DK\",H19,\"DE\",I19,\"CH\",J19,\"NL\",K19,)","v":"Etterarbeid - Total"},null,"Follow up - Total","Etterarbeid - Total","Uppföljning - Totalt","Opfølgning – i alt","Nachfassen – gesamt","Nachfassen – gesamt","Vervolgactiviteit - Totaal"]
[null,null,{"$f":"_xlfn.SWITCH(Language,\"EN\",E20,\"NO\",F20,\"SE\",G20,\"DK\",H20,\"DE\",I20,\"CH\",J20,\"NL\",K20,)","v":"Tid - Total"},null,"Time - Total","Tid - Total","Tid - Totalt","Tid – i alt","Zeit – gesamt","Zeit – gesamt","Tijd - Totaal"]
[null,null,{"$f":"_xlfn.SWITCH(Language,\"EN\",E21,\"NO\",F21,\"SE\",G21,\"DK\",H21,\"DE\",I21,\"CH\",J21,\"NL\",K21,)","v":"Kostnad - Forberedelser"},null,"Cost - Preparations","Kostnad - Forberedelser","Kostnad - Förberedelser","Omkostninger – forberedelser","Kosten – Vorbereitungen","Kosten – Vorbereitungen","Kosten - Voorbereidingen"]
[null,null,{"$f":"_xlfn.SWITCH(Language,\"EN\",E22,\"NO\",F22,\"SE\",G22,\"DK\",H22,\"DE\",I22,\"CH\",J22,\"NL\",K22,)","v":"Kostnad - Gjennomføring"},null,"Cost - Execution","Kostnad - Gjennomføring","Kostnad - Utförande","Omkostninger – udførelse","Kosten – Durchführung","Kosten – Durchführung","Kosten - Uitvoering"]
[null,null,{"$f":"_xlfn.SWITCH(Language,\"EN\",E23,\"NO\",F23,\"SE\",G23,\"DK\",H23,\"DE\",I23,\"CH\",J23,\"NL\",K23,)","v":"Kostnad - Etterarbeid"},null,"Cost - Follow up","Kostnad - Etterarbeid","Kostnad - Uppföljning","Omkostninger – opfølgning","Kosten – Nachfassen","Kosten – Nachfassen","Kosten - Vervolgactiviteit"]
[null,null,{"$f":"_xlfn.SWITCH(Language,\"EN\",E24,\"NO\",F24,\"SE\",G24,\"DK\",H24,\"DE\",I24,\"CH\",J24,\"NL\",K24,)","v":"Kostnad - Total"},null,"Cost - Total","Kostnad - Total","Kostnad - Totalt","Omkostninger – i alt","Kosten – gesamt","Kosten – gesamt","Kosten - Totaal"]
[null,null,{"$f":"_xlfn.SWITCH(Language,\"EN\",E25,\"NO\",F25,\"SE\",G25,\"DK\",H25,\"DE\",I25,\"CH\",J25,\"NL\",K25,)","v":"Aktivitet - Beskrivelse"},null,"Activity - Description","Aktivitet - Beskrivelse","Aktivitet - Beskrivning","Aktivitet – beskrivelse","Maßnahme – Beschreibung","Massnahme – Beschreibung","Activiteit - Beschrijving"]
[]
[null,"Activity code","Current language","Current descrpition","Name - English","Name - Norwegian","Name - Swedish","Name - Danish","Name - German","Name - Swizz","Name - Dutch","Description - English","Description - Norwegian","Description - Swedish","Description - Danish","Description - German","Description - Swizz","Description - Dutch"]
[null,"ID01",{"$f":"_xlfn.SWITCH(Language,\"EN\",E28,\"NO\",F28,\"SE\",G28,\"DK\",H28,\"DE\",I28,\"CH\",J28,\"NL\",K28,)","v":"Løsningsbeskrivelse"},{"$f":"_xlfn.SWITCH(Language,\"EN\",L28,\"NO\",M28,\"SE\",N28,\"DK\",O28,\"DE\",P28,\"CH\",Q28,\"NL\",R28,)","v":0},"Description of solution","Løsningsbeskrivelse","Beskrivning av lösningen","Beskrivelse af løsning","Lösungsbeschreibung","Lösungsbeschreibung","Description of solution"]
[null,"IN01",{"$f":"_xlfn.SWITCH(Language,\"EN\",E29,\"NO\",F29,\"SE\",G29,\"DK\",H29,\"DE\",I29,\"CH\",J29,\"NL\",K29,)","v":"Verdi workshop"},{"$f":"_xlfn.SWITCH(Language,\"EN\",L29,\"NO\",M29,\"SE\",N29,\"DK\",O29,\"DE\",P29,\"CH\",Q29,\"NL\",R29,)","v":"Skape enighet om hvorfor vi gjør dette og hvordan dette støtter strategien. Opparbeide en felles forståelse for og sterk forankring av prosjektets omfang og leveranser i ledergruppen. Kartlegge de 3-5 viktigste KPIer som forretningen navigerer og prioriterer etter."},"Value workshop","Verdi workshop","Värdeworkshop","Value workshop","Value-Workshop","Value-Workshop","Value-workshop","Establish agreement regarding why we are doing this and how this supports the strategy. Develop a common understanding and strong anchoring of the project's scope and deliverables within the management team. Mapping the 3-5 most important KPIs according to which your business navigates and establishes priorities.","Skape enighet om hvorfor vi gjør dette og hvordan dette støtter strategien. Opparbeide en felles forståelse for og sterk forankring av prosjektets omfang og leveranser i ledergruppen. Kartlegge de 3-5 viktigste KPIer som forretningen navigerer og prioriterer etter.","Skapa enighet kring varför vi gör detta och hur detta främjar strategin. Arbeta för gemensam förståelse för och stark förankring av projektets omfattning och leveranser i ledningsgruppen. Kartlägg de 3-5 viktigaste KPI:erna som verksamheten navigerar och prioriterar efter.","Skabe enighed om, hvorfor vi gør dette, og hvordan det understøtter strategien. Oparbejde en fælles forståelse for og stærk forankring af projektets omfang og leverancer i ledelsesteamet. Kortlægge de 3-5 vigtigste KPI'er, som virksomheden navigerer og prioriterer efter.","Einigen Sie sich mit dem Management darüber, warum diese Initiative angestoßen wurde und in welcher Weise sie die Strategie unterstützt. Erarbeiten Sie ein gemeinsames Verständnis über den Projektumfang und die zu erbringenden Leistungen und sorgen Sie dafür, dass dieses im Managementteam nachhaltig verankert wird. Des Weiteren werden die 3 bis 5 wichtigsten KPIs zusammengestellt, die in der Firma genutzt werden, um die Leistung zu messen und Prioritäten zu setzen.","Einigen Sie sich mit dem Management darüber, warum diese Initiative angestossen wurde und in welcher Weise sie die Strategie unterstützt. Erarbeiten Sie ein gemeinsames Verständnis über den Projektumfang und die zu erbringenden Leistungen und sorgen Sie dafür, dass dieses im Managementteam nachhaltig verankert wird. Des Weiteren werden die 3 bis 5 wichtigsten KPIs zusammengestellt, die in der Firma genutzt werden, um die Leistung zu messen und Prioritäten zu setzen.","Bereik overeenstemming over waarom we dit doen en hoe dit de strategie ondersteunt. Ontwikkel een gemeenschappelijk begrip en een sterke verankering van de reikwijdte en doelstellingen van het project binnen het managementteam. De 3-5 belangrijkste KPI's toewijzen op basis waarvan uw bedrijf navigeert en prioriteiten bepaalt."]
[null,"IN02",{"$f":"_xlfn.SWITCH(Language,\"EN\",E30,\"NO\",F30,\"SE\",G30,\"DK\",H30,\"DE\",I30,\"CH\",J30,\"NL\",K30,)","v":"Kick-Off møte"},{"$f":"_xlfn.SWITCH(Language,\"EN\",L30,\"NO\",M30,\"SE\",N30,\"DK\",O30,\"DE\",P30,\"CH\",Q30,\"NL\",R30,)","v":"Skape felles forståelse av prosjektets omfang, leveranser og nøkkel KPI. Definere organisering av prosjektet og mobilisere kjerneteam.Forberede designfasen (Hva trenger vi fra de - hvem ønsker vi at skal delta)."},"Kick-Off meeting","Kick-Off møte","Kick-off-möte","Kick-off-møde","Kick-off-Meeting","Kick-off-Meeting","Kick off meeting","Create a common understanding of the project's scope, deliverables and key KPIs. Define project organisation and mobilise the core team.Prepare the design stage (What do we need from them? - Who do we want to participate?).","Skape felles forståelse av prosjektets omfang, leveranser og nøkkel KPI. Definere organisering av prosjektet og mobilisere kjerneteam.Forberede designfasen (Hva trenger vi fra de - hvem ønsker vi at skal delta).","Skapa gemensam förståelse för projektets omfattning, leveranser och nyckel-KPI:er. Definiera organisationen av projektet och mobilisera kärnteam. Förbereda designfasen (Vad behöver vi få från dem – vilka vill vi ska delta).","Skabe en fælles forståelse af projektets omfang, leverancer og centrale KPI’er. Definere organisering af projektet og mobilisere kerneteams. Forberede designfasen (hvad har vi brug for fra dem – hvem ønsker vi skal deltage).","Erarbeiten Sie ein gemeinsames Verständnis des Projektumfangs, der zu erbringenden Leistungen und der wichtigsten KPIs. Definieren Sie die Projektorganisation und stellen Sie ein Kernteam zusammen. Bereiten Sie die Designphase vor: Was brauchen wir vom Kunden? Wer soll teilnehmen?","Erarbeiten Sie ein gemeinsames Verständnis des Projektumfangs, der zu erbringenden Leistungen und der wichtigsten KPIs. Definieren Sie die Projektorganisation und stellen Sie ein Kernteam zusammen. Bereiten Sie die Designphase vor: Was brauchen wir vom Kunden? Wer soll teilnehmen?","Creëer een gemeenschappelijk begrip van de reikwijdte, de resultaten en de belangrijkste KPI's van het project. Definieer de projectorganisatie en mobiliseer het kernteam. Bereid de ontwerpfase voor (Wat hebben we van hen nodig? - Wie willen we laten deelnemen?)."]
[null,"DE01",{"$f":"_xlfn.SWITCH(Language,\"EN\",E31,\"NO\",F31,\"SE\",G31,\"DK\",H31,\"DE\",I31,\"CH\",J31,\"NL\",K31,)","v":"KPI workshop"},{"$f":"_xlfn.SWITCH(Language,\"EN\",L31,\"NO\",M31,\"SE\",N31,\"DK\",O31,\"DE\",P31,\"CH\",Q31,\"NL\",R31,)","v":"Omsette de viktigste måleparameter til leading og lagging KPIer. Kvalifisere KPI, hvordan omsetter vi dette til SO og kan vi måle og følge opp dette. Hvilke dashboards trenger vi for å kunne omsette data til innsikt. Hvem er ansvarlig for datainnsamling, kvalifisering og SO hos kunden."},"KPI workshop","KPI workshop","KPI workshop","KPI-workshop","KPI-Workshop","KPI-Workshop","KPI-workshop","Translate the main measurement parameters into leading and lagging KPIs. Qualify the KPIs; how do we translate this into SO and can we measure and follow up on this. What dashboards do we need in order to translate data into insight? Who is responsible for data collection, qualification and SO on behalf of the customer?","Omsette de viktigste måleparameter til leading og lagging KPIer. Kvalifisere KPI, hvordan omsetter vi dette til SO og kan vi måle og følge opp dette. Hvilke dashboards trenger vi for å kunne omsette data til innsikt. Hvem er ansvarlig for datainnsamling, kvalifisering og SO hos kunden.","Omsätta de viktigaste mätparametrarna till ledande och eftersläpande KPI:er. Kvalificera KPI, hur omsätter vi detta till SO och kan vi mäta och följa upp detta. Vilka dashboard behöver vi för att kunna omsätta data till insikter. Vem är ansvarig för datainsamling, kvalificering och SO hos kunden.","Omsætte de vigtigste måleparametre til ledende og lagging KPI'er. Kvalificere KPI, hvordan omsætter vi dette til SuperOffice, og kan vi måle og følge op på dette. Hvilke dashboards har vi brug for for at kunne omsætte data til indsigt. Hvem er ansvarlig for dataindsamling, kvalificering og SuperOffice hos kunden.","Übersetzen Sie die wichtigsten Bewertungsparameter in vorauseilende und nachlaufende KPIs. Qualifizieren Sie die KPIs: Wie übersetzen wir sie in SO und wie können wir sie messen und weiterverfolgen? Welche Dashboards benötigen wir zur Umsetzung von Daten in Erkenntnisse? Wer ist im Auftrag des Kunden für die Datenerhebung und -qualifizierung sowie für SuperOffice verantwortlich?","Übersetzen Sie die wichtigsten Bewertungsparameter in vorauseilende und nachlaufende KPIs. Qualifizieren Sie die KPIs: Wie übersetzen wir sie in SO und wie können wir sie messen und weiterverfolgen? Welche Dashboards benötigen wir zur Umsetzung von Daten in Erkenntnisse? Wer ist im Auftrag des Kunden für die Datenerhebung und -qualifizierung sowie für SuperOffice verantwortlich?","Vertaal de belangrijkste meetparameters naar leading en lagging KPI's. Kwalificeer de KPI's; hoe vertalen we dit naar SO en kunnen we dit meten en opvolgen. Welke dashboards hebben we nodig om gegevens te vertalen naar inzicht? Wie is namens de klant verantwoordelijk voor gegevensverzameling, -kwalificatie en SO?"]
[null,"DE02",{"$f":"_xlfn.SWITCH(Language,\"EN\",E32,\"NO\",F32,\"SE\",G32,\"DK\",H32,\"DE\",I32,\"CH\",J32,\"NL\",K32,)","v":"Arbeidsflyt workshop"},{"$f":"_xlfn.SWITCH(Language,\"EN\",L32,\"NO\",M32,\"SE\",N32,\"DK\",O32,\"DE\",P32,\"CH\",Q32,\"NL\",R32,)","v":"Forberede designfasen (Hva trenger vi fra de - hvem ønsker vi at skal delta)."},"Workflow workshop","Arbeidsflyt workshop","Arbetsflödesworkshop","Workflow-workshop","Workflow-Workshop","Workflow-Workshop","Workflow-workshop","Prepare the design stage (What do we need from them? - Who do we want to participate?).","Forberede designfasen (Hva trenger vi fra de - hvem ønsker vi at skal delta).","Förbereda designfasen (Vad behöver vi från dem – vem vill vi ska delta).","Forberede designfasen (hvad har vi brug for fra dem - hvem ønsker vi skal deltage).","Bereiten Sie die Designphase vor: Was brauchen wir vom Kunden? Wer soll teilnehmen?","Bereiten Sie die Designphase vor: Was brauchen wir vom Kunden? Wer soll teilnehmen?","Bereid de ontwerpfase voor (Wat hebben we van hen nodig? - Wie willen we laten deelnemen?)."]
[null,"DE03",{"$f":"_xlfn.SWITCH(Language,\"EN\",E33,\"NO\",F33,\"SE\",G33,\"DK\",H33,\"DE\",I33,\"CH\",J33,\"NL\",K33,)","v":"Konfigurasjonsworkshop"},{"$f":"_xlfn.SWITCH(Language,\"EN\",L33,\"NO\",M33,\"SE\",N33,\"DK\",O33,\"DE\",P33,\"CH\",Q33,\"NL\",R33,)","v":"Workshop med 2 konsulenter fasilitert digitalt via Miro eller fysisk etter Brown Paper metoden. Formålet med workshopen er å komme frem til en best mulig utforming og konfigurasjon for SuperOffice CRM. Vi fokuserer på at systemet må støtte forretningsprosessen (definert i Workflow workshop) og dekke behovet for brukerstøtte og rapportering i organisasjonen. Databasen konfigureres og alt dokumenteres."},"Configuration workshop","Konfigurasjonsworkshop","Konfigurationsworkshop","Konfigurationsworkshop","Konfigurations-Workshop","Konfigurations-Workshop","Configuratie-workshop","Workshop with two consultants facilitated either digitally via Miro or physically according to the ‘brown paper’ method. The purpose of the workshop is to arrive at the best possible design and configuration for SuperOffice CRM. We will focus on the system having to support the business process (as defined during the workflow workshop) and meet the organisation’s needs regarding support and reporting. The database is configured and everything documented.","Workshop med 2 konsulenter fasilitert digitalt via Miro eller fysisk etter Brown Paper metoden. Formålet med workshopen er å komme frem til en best mulig utforming og konfigurasjon for SuperOffice CRM. Vi fokuserer på at systemet må støtte forretningsprosessen (definert i Workflow workshop) og dekke behovet for brukerstøtte og rapportering i organisasjonen. Databasen konfigureres og alt dokumenteres.","Workshop med 2 konsulter som hålls digitalt via Miro eller fysiskt enligt Brown Paper metoden. Syftet med workshopen är att komma fram till bästa möjliga utformning och konfiguration för SuperOffice CRM. Vi fokuserar på att systemet måste stödja affärsprocessen (definierat in Arbetsflödesworkshopen) och identifiera behovet av användarstöd och rapportering i organisationen. Datadatabasen konfigureras och allt dokumenteras.","Workshop med 2 konsulenter faciliteret digitalt via Miro eller fysisk efter 'brunt papir'-metoden. Formålet med workshoppen er at komme frem til den bedst mulige udformning og konfiguration for SuperOffice CRM. Vi fokuserer på, at systemet skal understøtte forretningsprocessen (defineret i workflow-workshop) og dække behovet for brugerstøtte og rapportering i organisationen. Databasen konfigureres og alt dokumenteres.","Workshop mit zwei Beratern, entweder digital über Miro oder physisch mit einem Flipchart. Ziel des Workshops ist die Konzeption des bestmöglichen Designs und der bestmöglichen Konfiguration für SuperOffice CRM. Wir konzentrieren uns auf das System, das den Geschäftsprozess (siehe Definition aus dem Workflow-Workshop) unterstützen und die Anforderungen der Organisation in Bezug auf Support und Berichterstattung erfüllen muss. Die Datenbank wird konfiguriert und alles dokumentiert.","Workshop mit zwei Beratern, entweder digital über Miro oder physisch mit einem Flipchart. Ziel des Workshops ist die Konzeption des bestmöglichen Designs und der bestmöglichen Konfiguration für SuperOffice CRM. Wir konzentrieren uns auf das System, das den Geschäftsprozess (siehe Definition aus dem Workflow-Workshop) unterstützen und die Anforderungen der Organisation in Bezug auf Support und Berichterstattung erfüllen muss. Die Datenbank wird konfiguriert und alles dokumentiert.","Workshop met twee consultants die hetzij digitaal via Miro of fysiek volgens de 'brown paper'-methode wordt gefaciliteerd. Het doel van de workshop is te komen tot een ontwerp en configuratie voor SuperOffice CRM die optimaal zijn. We zullen ons richten op het systeem dat het bedrijfsproces moet ondersteunen (zoals gedefinieerd tijdens de Workflow-workshop) en op het voldoen aan de behoeften van de organisatie op het vlak van ondersteuning en rapportage. De database is geconfigureerd en alles is gedocumenteerd."]
[null,"DE04",{"$f":"_xlfn.SWITCH(Language,\"EN\",E34,\"NO\",F34,\"SE\",G34,\"DK\",H34,\"DE\",I34,\"CH\",J34,\"NL\",K34,)","v":"CRM Script spesifikasjon"},{"$f":"_xlfn.SWITCH(Language,\"EN\",L34,\"NO\",M34,\"SE\",N34,\"DK\",O34,\"DE\",P34,\"CH\",Q34,\"NL\",R34,)","v":"Formålet med CRMScript-workshopen er at vi sammen avdekker deres behov for automatisering av prosesser, for å sikre datakvalitet og for spesialtilpassing av SuperOffice. Utvikling av script estimeres på bakgrunn av denne aktiviteten. "},"CRMScript specification","CRM Script spesifikasjon","CRMScript specifikation","CRMScript-specifikation","CRMScript-Spezifikation","CRMScript-Spezifikation","Workshop voor CRMScript-specificatie","The purpose of the CRMScript workshop is to jointly identify your needs as regards the automation of processes, to ensure data quality and for the customisation of SuperOffice. Script development is estimated on the basis of this activity. ","Formålet med CRMScript-workshopen er at vi sammen avdekker deres behov for automatisering av prosesser, for å sikre datakvalitet og for spesialtilpassing av SuperOffice. Utvikling av script estimeres på bakgrunn av denne aktiviteten. ","Syftet med CRMScript-workshopen är att vi tillsammans identifierar deras behov av automatisering av processer, för att säkerställa datakvaliteten och för specialanpassning av SuperOffice. Utveckling av skript beräknas utifrån denna aktivitet. ","Formålet med CRMScript-workshoppen er at vi sammen afdækker jeres behov for automatisering af processer, for sikring af datakvalitet og for specialtilpasning af SuperOffice. Udvikling af scripts vurderes på baggrund af denne aktivitet. ","Ziel des CRMScript-Workshops ist es, in Absprache mit Ihnen Ihre Anforderungen an die Prozessautomatisierung abzuklären, um die Datenqualität zu gewährleisten und eine kundenspezifische Anpassung von SuperOffice zu ermöglichen. Der Aufwand für die CRMScript-Spezifikation wird auf dieser Grundlage geschätzt. ","Ziel des CRMScript-Workshops ist es, in Absprache mit Ihnen Ihre Anforderungen an die Prozessautomatisierung abzuklären, um die Datenqualität zu gewährleisten und eine kundenspezifische Anpassung von SuperOffice zu ermöglichen. Der Aufwand für die CRMScript-Spezifikation wird auf dieser Grundlage geschätzt. ","De CRMScript-workshop heeft tot doel, gezamenlijk uw behoeften te identificeren met betrekking tot de automatisering van processen ter borging van de gegevenskwaliteit en aanpassing van SuperOffice. Scriptontwikkeling wordt ingeschat op basis van deze activiteit. "]
[null,"DE05",{"$f":"_xlfn.SWITCH(Language,\"EN\",E35,\"NO\",F35,\"SE\",G35,\"DK\",H35,\"DE\",I35,\"CH\",J35,\"NL\",K35,)","v":"Importspesifikasjon"},{"$f":"_xlfn.SWITCH(Language,\"EN\",L35,\"NO\",M35,\"SE\",N35,\"DK\",O35,\"DE\",P35,\"CH\",Q35,\"NL\",R35,)","v":"Et arbeidsmøte hvor man går igjennom importbehovene. Formålet er en oversikt over hvilke felt som skal importeres og hvor disse skal synliggjøres i SuperOffice. Gjennomføring av selve importen estimeres på bakgrunn av denne aktiviteten. "},"Import specification","Importspesifikasjon","Importspecifikation","Import-specifikation","Importspezifikation","Importspezifikation","Workshop voor Importspecificatie ","A working meeting where the import requirements are reviewed. The aim is to draw up an overview of the fields that are to be imported and where these will be made visible in SuperOffice. Implementation of the actual import will be estimated based on this activity. ","Et arbeidsmøte hvor man går igjennom importbehovene. Formålet er en oversikt over hvilke felt som skal importeres og hvor disse skal synliggjøres i SuperOffice. Gjennomføring av selve importen estimeres på bakgrunn av denne aktiviteten. ","Ett arbetsmöte där man går igenom importbehoven. Syftet är en översikt över vilka fält som ska importeras och var dessa ska synliggöras i SuperOffice. Genomförande av själva importen baseras på denna aktivitet. ","Et arbejdsmøde, hvor man gennemgår importbehovene. Formålet er at få en oversigt over, hvilke felter der skal importeres og hvor disse skal synliggøres i SuperOffice. Gennemførelse af selve importen vurderes på baggrund af denne aktivitet. ","Arbeits-Meeting zur Abklärung der Importanforderungen. Ziel ist es, einen Überblick über die Felder zu erstellen, die importiert werden sollen, und festzulegen, wo diese in SuperOffice angezeigt werden sollen. Der Aufwand für den eigentlichen Import wird auf dieser Grundlage geschätzt. ","Arbeits-Meeting zur Abklärung der Importanforderungen. Ziel ist es, einen Überblick über die Felder zu erstellen, die importiert werden sollen, und festzulegen, wo diese in SuperOffice angezeigt werden sollen. Der Aufwand für den eigentlichen Import wird auf dieser Grundlage geschätzt. ","Een workshop waarin de importvereisten worden besproken. Het doel is, een overzicht op te stellen van de velden die moeten worden geïmporteerd en waar deze velden in SuperOffice zichtbaar moeten zijn. De implementatie van de daadwerkelijke import zal worden geschat op basis van deze activiteit. "]
[null,"DE06",{"$f":"_xlfn.SWITCH(Language,\"EN\",E36,\"NO\",F36,\"SE\",G36,\"DK\",H36,\"DE\",I36,\"CH\",J36,\"NL\",K36,)","v":"Data synkroniseringsspesifikasjon"},{"$f":"_xlfn.SWITCH(Language,\"EN\",L36,\"NO\",M36,\"SE\",N36,\"DK\",O36,\"DE\",P36,\"CH\",Q36,\"NL\",R36,)","v":"Formålet med Synkroniserings spesifikasjonen er at vi sammen avdekker deres behov for jevnlig utveksling av data (filer) ved bruk av InfoBridge sin app DataBridge. Konfigurasjon og oppsett av eksport/import estimeres på bakgrunn av denne aktiviteten."},"Data Synchronization specification","Data synkroniseringsspesifikasjon","Specifikation datasynkronisering","Datasynkroniseringsspecifikation","Datensynchronisierungsspezifikation","Datensynchronisierungsspezifikation","Workshop voor gegevenssynchronisatie (DataBridge)","The purpose of the Synchronisation specification is to jointly identify your needs concerning the regular exchange of data (files) using InfoBridge's DataBridge app. Configuration and setup of export/import is estimated on the basis of this activity.","Formålet med Synkroniserings spesifikasjonen er at vi sammen avdekker deres behov for jevnlig utveksling av data (filer) ved bruk av InfoBridge sin app DataBridge. Konfigurasjon og oppsett av eksport/import estimeres på bakgrunn av denne aktiviteten.","Syftet med Synkroniseringsspecifikationer är att vi tillsammans identifierar deras behov av regelbundet utbyte av data (filer) vid användning av InfoBridges app, DataBridge. Konfiguration och konfiguration av export/import beräknas mot bakgrund av denna aktivitet.","Formålet med synkroniseringsspecifikationen er at vi sammen afdækker jeres behov for regelmæssig udveksling af data (filer) ved hjælp af InfoBridge's DataBridge-app. Konfiguration og opsætning af eksport/import vurderes på baggrund af denne aktivitet.","Ziel der Synchronisationsspezifikation ist es, in Absprache mit Ihnen Ihre Anforderungen an den regelmäßigen Datenaustausch (Dateien) mithilfe der DataBridge-App von InfoBridge abzuklären. Der Aufwand für die Konfiguration und Einrichtung des Export/Imports wird auf dieser Grundlage geschätzt.","Ziel der Synchronisationsspezifikation ist es, in Absprache mit Ihnen Ihre Anforderungen an den regelmässigen Datenaustausch (Dateien) mithilfe der DataBridge-App von InfoBridge abzuklären. Der Aufwand für die Konfiguration und Einrichtung des Export/Imports wird auf dieser Grundlage geschätzt.","De synchronisatiespecificatie heeft tot doel, gezamenlijk uw behoeften te identificeren met betrekking tot de regelmatige gegevensuitwisseling (bestanden) met gebruik van de app DataBridge van InfoBridge. De configuratie en instelling van de export/import wordt ingeschat op basis van deze activiteit."]
[null,"DE07",{"$f":"_xlfn.SWITCH(Language,\"EN\",E37,\"NO\",F37,\"SE\",G37,\"DK\",H37,\"DE\",I37,\"CH\",J37,\"NL\",K37,)","v":"Kundesenter spesifikasjon (CEP)"},{"$f":"_xlfn.SWITCH(Language,\"EN\",L37,\"NO\",M37,\"SE\",N37,\"DK\",O37,\"DE\",P37,\"CH\",Q37,\"NL\",R37,)","v":"Formålet med workshopen er at vi sammen avdekker deres behov for kundetilpasset oppsett og funksjonalitet på Kundesenteret. Dette dokumenteres og evt. utvikling estimeres på bakgrunn av denne aktiviteten. "},"Customer Center specification (CEP)","Kundesenter spesifikasjon (CEP)","Specifikation kundcenter (CEP)","Kundecenterspecifikation (CEP)","Kundenzentrumsspezifikation (CEP)","Kundenzentrumsspezifikation (CEP)","Workshop Specificatie voor het klantenportaal (CEP)","The purpose of this workshop is to jointly identify your needs concerning a custom setup and functionality at the Customer Service Centre. This is documented, and any development is estimated based on this task. ","Formålet med workshopen er at vi sammen avdekker deres behov for kundetilpasset oppsett og funksjonalitet på Kundesenteret. Dette dokumenteres og evt. utvikling estimeres på bakgrunn av denne aktiviteten. ","Syftet med workshopen är att vi tillsammans identifierar deras behov av kundanpassad installation och funktionalitet på Kundcentret. Detta dokumenteras och ev. utveckling beräknas utifrån denna aktivitet. ","Formålet med denne workshop er i fællesskab at identificere dine behov vedrørende en tilpasset opsætning og funktionalitet i kundeservicecenteret. Dette dokumenteres, og udviklingen vurderes på baggrund af denne opgave. ","Ziel dieses Workshops ist es, in Absprache mit Ihnen Ihre Anforderungen an die kundenspezifische Einrichtung und Funktionalität des Kundenzentrums abzuklären. Diese werden dokumentiert und der Entwicklungsaufwand wird auf dieser Grundlage geschätzt. ","Ziel dieses Workshops ist es, in Absprache mit Ihnen Ihre Anforderungen an die kundenspezifische Einrichtung und Funktionalität des Kundenzentrums abzuklären. Diese werden dokumentiert und der Entwicklungsaufwand wird auf dieser Grundlage geschätzt. ","Deze workshop heeft tot doel, gezamenlijk uw behoeften te identificeren met betrekking tot de aangepaste instelling en functionaliteit voor Customer Service. Dit wordt gedocumenteerd en elke ontwikkeling wordt ingeschat op basis van deze taak. "]
[null,"DE08",{"$f":"_xlfn.SWITCH(Language,\"EN\",E38,\"NO\",F38,\"SE\",G38,\"DK\",H38,\"DE\",I38,\"CH\",J38,\"NL\",K38,)","v":"AI spesifikasjon"},{"$f":"_xlfn.SWITCH(Language,\"EN\",L38,\"NO\",M38,\"SE\",N38,\"DK\",O38,\"DE\",P38,\"CH\",Q38,\"NL\",R38,)","v":"Ikke tilgjengelig enda"},"AI specification","AI spesifikasjon","AI-specifikation","AI-specifikation","KI-Spezifikation","KI-Spezifikation","AI-specificatie","Not yet available","Ikke tilgjengelig enda","Ej tillgänglig ännu","Ikke tilgængelig","Noch nicht verfügbar","Noch nicht verfügbar","Nog niet beschikbaar"]
[null,"DE09",{"$f":"_xlfn.SWITCH(Language,\"EN\",E39,\"NO\",F39,\"SE\",G39,\"DK\",H39,\"DE\",I39,\"CH\",J39,\"NL\",K39,)","v":"Prototype presentasjon Lite"},{"$f":"_xlfn.SWITCH(Language,\"EN\",L39,\"NO\",M39,\"SE\",N39,\"DK\",O39,\"DE\",P39,\"CH\",Q39,\"NL\",R39,)","v":"Konfigurert løsning presenteres kunden og definert arbeidsprosess/flyt demonstreres. Løsningen godkjennes, behov for evt. endringer konkretiseres."},"Prototype presentation Lite","Prototype presentasjon Lite","Prototyppresentation Lite","Prototypepræsentation Lite","Prototyp: Presentation Lite","Prototyp: Presentation Lite","Prototypepresentatie Lite","Configured solution is presented to the customer, and the defined work process/flow is demonstrated. The solution is approved; any necessary changes are specified.","Konfigurert løsning presenteres kunden og definert arbeidsprosess/flyt demonstreres. Løsningen godkjennes, behov for evt. endringer konkretiseres.","Konfigurerad lösning presenteras för kunden och definierad arbetsprocess/flöde demonstreras. Lösningen godkänns, behov av ev. ändringar konkretiseras.","Konfigureret løsning præsenteres for kunden, og den definerede arbejdsproces/det definerede arbejdsflow demonstreres. Løsningen godkendes. Alle nødvendige ændringer angives.","Die konfigurierte Lösung wird dem Kunden präsentiert und der definierte Arbeitsprozess/-ablauf wird demonstriert. Alle notwendigen Änderungen werden spezifiziert und die Lösung wird genehmigt.","Die konfigurierte Lösung wird dem Kunden präsentiert und der definierte Arbeitsprozess/-ablauf wird demonstriert. Alle notwendigen Änderungen werden spezifiziert und die Lösung wird genehmigt.","De geconfigureerde oplossing wordt gepresenteerd aan de klant en het gedefinieerde werkproces/de gedefinieerde workflow worden gedemonstreerd. De oplossing wordt goedgekeurd; eventuele noodzakelijke wijzigingen worden gespecificeerd."]
[null,"IM01",{"$f":"_xlfn.SWITCH(Language,\"EN\",E40,\"NO\",F40,\"SE\",G40,\"DK\",H40,\"DE\",I40,\"CH\",J40,\"NL\",K40,)","v":"Installasjon av SuperOffice og teknisk avklaring (On site)"},{"$f":"_xlfn.SWITCH(Language,\"EN\",L40,\"NO\",M40,\"SE\",N40,\"DK\",O40,\"DE\",P40,\"CH\",Q40,\"NL\",R40,)","v":"Forberedelser og gjennomføring av installasjon av SuperOffice på kundens egne servere."},"Installation of SuperOffice and technical clarification (On site)","Installasjon av SuperOffice og teknisk avklaring (On site)","Installation av SuperOffice och tekniskt förtydligande (på plats)","Installation af SuperOffice og teknisk afklaring (på stedet)","Installation von SuperOffice und technische Klärung (vor Ort)","Installation von SuperOffice und technische Klärung (vor Ort)","Installatie van SuperOffice en technische toelichting (op locatie)","Preparation for and implementation of installation of SuperOffice on customer’s own servers.","Forberedelser og gjennomføring av installasjon av SuperOffice på kundens egne servere.","Förberedelser och genomförande av installation av SuperOffice på kundens egna servrar.","Forberedelser og gennemførelse af installation af SuperOffice på kundens egne servere.","Ausarbeitung und Implementierung der SuperOffice-Installation auf den kundeneigenen Servern.","Ausarbeitung und Implementierung der SuperOffice-Installation auf den kundeneigenen Servern.","Voorbereiding en implementatie van de installatie van SuperOffice op de eigen servers van de klant."]
[null,"IM02",{"$f":"_xlfn.SWITCH(Language,\"EN\",E41,\"NO\",F41,\"SE\",G41,\"DK\",H41,\"DE\",I41,\"CH\",J41,\"NL\",K41,)","v":"Installasjon av Exchange Synchronizer (On site)"},{"$f":"_xlfn.SWITCH(Language,\"EN\",L41,\"NO\",M41,\"SE\",N41,\"DK\",O41,\"DE\",P41,\"CH\",Q41,\"NL\",R41,)","v":"Forberedelser og gjennomføring av installasjon av Exchange Synchronizer på kundens egne servere."},"Installation of Exchange Synchronizer (On site)","Installasjon av Exchange Synchronizer (On site)","Installation av Exchange Synchronizer (på plats)","Installation af Exchange Synchronizer (på stedet)","Installation von Exchange Synchronizer (vor Ort)","Installation von Exchange Synchronizer (vor Ort)","Installatie van Exchange Synchronizer (op locatie)","Preparation for and implementation of installation of Exchange Synchronizer on customer’s own servers.","Forberedelser og gjennomføring av installasjon av Exchange Synchronizer på kundens egne servere.","Förberedelser och genomförande av installation av Exchange Synchronizer på kundens egna servrar.","Forberedelser og gennemførelse af installation af Exchange Synchronizer på kundens egne servere.","Ausarbeitung und Implementierung der Exchange Synchronizer-Installation auf den kundeneigenen Servern.","Ausarbeitung und Implementierung der Exchange Synchronizer-Installation auf den kundeneigenen Servern.","Voorbereiding en implementatie van de installatie van Exchange Synchronizer op de eigen servers van de klant."]
[null,"IM03",{"$f":"_xlfn.SWITCH(Language,\"EN\",E42,\"NO\",F42,\"SE\",G42,\"DK\",H42,\"DE\",I42,\"CH\",J42,\"NL\",K42,)","v":"Installasjon av klienter / Oppsett av brukere"},{"$f":"_xlfn.SWITCH(Language,\"EN\",L42,\"NO\",M42,\"SE\",N42,\"DK\",O42,\"DE\",P42,\"CH\",Q42,\"NL\",R42,)","v":"Bistand til installasjon av SuperOffice klient på brukernes maskiner."},"Installation of clients / Setup of users","Installasjon av klienter / Oppsett av brukere","Installation av klienter/Konfiguration av användare","Installation af klienter / Opsætning af brugere","Installation von Clients/Einrichtung von Benutzern","Installation von Clients/Einrichtung von Benutzern","Installatie van clients/Instelling van gebruikers","Assistance installing SuperOffice client on users’ machines.","Bistand til installasjon av SuperOffice klient på brukernes maskiner.","Hjälp med installation av SuperOffice-klient på användarnas maskiner.","Hjælp til installation af SuperOffice-klient på brugernes maskiner.","Unterstützung bei der Installation des SuperOffice-Clients auf den Computern der Benutzer.","Unterstützung bei der Installation des SuperOffice-Clients auf den Computern der Benutzer.","Hulp bij de installatie van de SuperOffice-client op de computers van de gebruikers."]
[null,"IM04",{"$f":"_xlfn.SWITCH(Language,\"EN\",E43,\"NO\",F43,\"SE\",G43,\"DK\",H43,\"DE\",I43,\"CH\",J43,\"NL\",K43,)","v":"Oppsett konfigurasjon av Synchronizer for SuperOffice"},{"$f":"_xlfn.SWITCH(Language,\"EN\",L43,\"NO\",M43,\"SE\",N43,\"DK\",O43,\"DE\",P43,\"CH\",Q43,\"NL\",R43,)","v":"Bistand til oppsett og konfigurasjon av Synchronizer for SuperOffice."},"Synchronizer for SuperOffice setup","Oppsett konfigurasjon av Synchronizer for SuperOffice","Installation av Synchronizer for SuperOffice","Synkronisering til SuperOffice-opsætning","Synchronizer für SuperOffice-Einrichtung","Synchronizer für SuperOffice-Einrichtung","Synchronizer voor SuperOffice-instellingen","Assistance in setting up and configuring Synchronizer for SuperOffice.","Bistand til oppsett og konfigurasjon av Synchronizer for SuperOffice.","Hjälp med installation och konfiguration av Synchronizer for SuperOffice.","Hjælp til opsætning og konfiguration af Synchronizer for SuperOffice.","Unterstützung bei der Einrichtung und Konfiguration des Synchronizer für SuperOffice.","Unterstützung bei der Einrichtung und Konfiguration des Synchronizer für SuperOffice.","Hulp bij de instelling en configuratie van Synchronizer voor SuperOffice."]
[null,"IM05",{"$f":"_xlfn.SWITCH(Language,\"EN\",E44,\"NO\",F44,\"SE\",G44,\"DK\",H44,\"DE\",I44,\"CH\",J44,\"NL\",K44,)","v":"Bistand i oppsett av ekstra maler eller tilbudsmaler"},{"$f":"_xlfn.SWITCH(Language,\"EN\",L44,\"NO\",M44,\"SE\",N44,\"DK\",O44,\"DE\",P44,\"CH\",Q44,\"NL\",R44,)","v":"Formålet er at vi sammen går igjennom de maler dere ønsker i SuperOffice. Vi bistår med å få på plass malvariabler slik at informasjon automatisk fylles ut når man skriver dokumenter fra SuperOffice.  "},"Configure extra document- or quote templates","Bistand i oppsett av ekstra maler eller tilbudsmaler","Konfigurera extra dokument- eller offertmallar","Konfigurer ekstra dokument- eller tilbudsskabeloner","Konfigurieren zusätzlicher Dokument- oder Angebotsvorlagen","Konfigurieren zusätzlicher Dokument- oder Angebotsvorlagen","Extra document- of offertesjablonen configureren","The aim is to jointly review the templates you want to have in SuperOffice. We will help to establish template variables so that information will automatically be completed when writing documents from SuperOffice.  ","Formålet er at vi sammen går igjennom de maler dere ønsker i SuperOffice. Vi bistår med å få på plass malvariabler slik at informasjon automatisk fylles ut når man skriver dokumenter fra SuperOffice.  ","Syftet är att vi tillsammans går igenom de mallar ni vill ha i SuperOffice. Vi hjälper till med att få mallvariabler på plats så att informationen fylls i automatiskt när man skriver dokument från SuperOffice.  ","Formålet er at vi sammen gennemgår de skabeloner, I ønsker i SuperOffice. Vi hjælper med at oprette skabelonvariabler, så oplysningerne automatisk udfyldes, når du skriver dokumenter fra SuperOffice.  ","Wir klären in Absprache mit Ihnen ab, welche Vorlagen Sie in SuperOffice wünschen. Wir unterstützen Sie beim Einrichten von Vorlagenvariablen, sodass Informationen beim Verfassen von Dokumenten in SuperOffice automatisch vervollständigt werden.  ","Wir klären in Absprache mit Ihnen ab, welche Vorlagen Sie in SuperOffice wünschen. Wir unterstützen Sie beim Einrichten von Vorlagenvariablen, sodass Informationen beim Verfassen von Dokumenten in SuperOffice automatisch vervollständigt werden.  ","Het is de bedoeling om gezamenlijk de sjablonen te bekijken die u in SuperOffice wilt gebruiken. We zullen u helpen bij de bepaling van de sjabloonvariabelen, zodat er automatisch informatie wordt ingevuld wanneer u documenten schrijft vanuit SuperOffice.  "]
[null,"IM06",{"$f":"_xlfn.SWITCH(Language,\"EN\",E45,\"NO\",F45,\"SE\",G45,\"DK\",H45,\"DE\",I45,\"CH\",J45,\"NL\",K45,)","v":"Oppsett og opplæring i Utsendelser og Webskjemaer"},{"$f":"_xlfn.SWITCH(Language,\"EN\",L45,\"NO\",M45,\"SE\",N45,\"DK\",O45,\"DE\",P45,\"CH\",Q45,\"NL\",R45,)","v":"Oppsett, gjennomgang og opplæring i utsendelser og webskjema."},"Marketing configuration and training","Oppsett og opplæring i Utsendelser og Webskjemaer","Marknadsföringskonfiguration och utbildning","Marketingkonfiguration og -uddannelse","Marketing-Konfiguration und -Schulung","Marketing-Konfiguration und -Schulung","Marketingconfiguratie en -training","Setup, introduction to and training in Mailings and Web Forms","Oppsett, gjennomgang og opplæring i utsendelser og webskjema.","Konfiguration, genomgång och utbildning i utskick och webbformulär.","Opsætning og uddannelse i udsendelser og webformularer.","Einrichtung von Mailings und Webformularen sowie Einführung und Schulungen dazu","Einrichtung von Mailings und Webformularen sowie Einführung und Schulungen dazu","Instelling, introductie en training voor Mailings en Webformulieren"]
[null,"IM07",{"$f":"_xlfn.SWITCH(Language,\"EN\",E46,\"NO\",F46,\"SE\",G46,\"DK\",H46,\"DE\",I46,\"CH\",J46,\"NL\",K46,)","v":"Chat konfigurasjon og opplæring"},{"$f":"_xlfn.SWITCH(Language,\"EN\",L46,\"NO\",M46,\"SE\",N46,\"DK\",O46,\"DE\",P46,\"CH\",Q46,\"NL\",R46,)","v":"Vi konfigurerer løsning og sørger for at dere får korrekt utseende og oppførsel på Chat widgeten dere plasserer på hjemmesiden deres. Deretter lærer vi dere hvordan dette benyttes. "},"Chat configuration and training","Chat konfigurasjon og opplæring","Chattkonfiguration och utbildning","Chatkonfiguration og -uddannelse","Chat-Konfiguration und -Schulung","Chat-Konfiguration und -Schulung","Chatconfiguratie en -training","We configure a solution and make sure you get the right look and feel on the Chat widget that you put on your website. We will then teach you how to use it. ","Vi konfigurerer løsning og sørger for at dere får korrekt utseende og oppførsel på Chat widgeten dere plasserer på hjemmesiden deres. Deretter lærer vi dere hvordan dette benyttes. ","Vi konfigurerar lösningen och ser till att du får rätt utseende på och beteende hos chattwidgeten som ni lägger upp på hemsidan. Därefter lär vi dig hur denna används. ","Vi konfigurerer en løsning og sørger for, at du opnår rette ’look and feel’ på den chat-widget, du lægger på dit websted. Derefter lærer vi dig, hvordan du bruger den. ","Wir konfigurieren eine Lösung mit dem gewünschten Erscheinungsbild des Chat-Widgets auf Ihrer Website. Im Anschluss erläutern wir Ihnen die Verwendung. ","Wir konfigurieren eine Lösung mit dem gewünschten Erscheinungsbild des Chat-Widgets auf Ihrer Website. Im Anschluss erläutern wir Ihnen die Verwendung. ","We configureren een oplossing en zorgen voor een juiste look-and-feel van de chat-widget die u op de website plaatst. Vervolgens leren we u hoe u de chat-widget moet gebruiken. "]
[null,"IM08",{"$f":"_xlfn.SWITCH(Language,\"EN\",E47,\"NO\",F47,\"SE\",G47,\"DK\",H47,\"DE\",I47,\"CH\",J47,\"NL\",K47,)","v":"Konfigurasjon og oppsett av Dashbord"},{"$f":"_xlfn.SWITCH(Language,\"EN\",L47,\"NO\",M47,\"SE\",N47,\"DK\",O47,\"DE\",P47,\"CH\",Q47,\"NL\",R47,)","v":0},"Setup and configuration of Dashboards","Konfigurasjon og oppsett av Dashbord","Installation och konfiguration av Dashboards","Opsætning og konfiguration af Dashboards","Einrichtung und Konfiguration von Dashboards","Einrichtung und Konfiguration von Dashboards","Dashboards instellen en configureren"]
[null,"IM09",{"$f":"_xlfn.SWITCH(Language,\"EN\",E48,\"NO\",F48,\"SE\",G48,\"DK\",H48,\"DE\",I48,\"CH\",J48,\"NL\",K48,)","v":"Konfigurasjon og oppsett av SuperOffice"},{"$f":"_xlfn.SWITCH(Language,\"EN\",L48,\"NO\",M48,\"SE\",N48,\"DK\",O48,\"DE\",P48,\"CH\",Q48,\"NL\",R48,)","v":0},"Setup and configuration of SuperOffice","Konfigurasjon og oppsett av SuperOffice","Installation och konfiguration av SuperOffice","Opsætning og konfiguration af SuperOffice","Einrichtung und Konfiguration von SuperOffice","Einrichtung und Konfiguration von SuperOffice","SuperOffice configureren"]
[null,"IM10",{"$f":"_xlfn.SWITCH(Language,\"EN\",E49,\"NO\",F49,\"SE\",G49,\"DK\",H49,\"DE\",I49,\"CH\",J49,\"NL\",K49,)","v":"Utvikling av CRMScript"},{"$f":"_xlfn.SWITCH(Language,\"EN\",L49,\"NO\",M49,\"SE\",N49,\"DK\",O49,\"DE\",P49,\"CH\",Q49,\"NL\",R49,)","v":"SuperOffice utvikler script basert ihht spesifikasjon (DE04)"},"CRMScript development","Utvikling av CRMScript","CRMScript-utveckling","CRMScript-udvikling","CRMScript-Entwicklung","CRMScript-Entwicklung","CRMScript ontwikkelen","SuperOffice develops script in accordance with specification (DE04)","SuperOffice utvikler script basert ihht spesifikasjon (DE04)","SuperOffice utvecklar skript enligt specifikationen (DE04)","SuperOffice udvikler scripts baseret på specifikation (DE04)","SuperOffice erarbeitet ein Skript auf der Grundlage der Spezifikation (DE04)","SuperOffice erarbeitet ein Skript auf der Grundlage der Spezifikation (DE04)","SuperOffice ontwikkelt een script volgens specificatie (DE04)"]
[null,"IM11",{"$f":"_xlfn.SWITCH(Language,\"EN\",E50,\"NO\",F50,\"SE\",G50,\"DK\",H50,\"DE\",I50,\"CH\",J50,\"NL\",K50,)","v":"Import av data"},{"$f":"_xlfn.SWITCH(Language,\"EN\",L50,\"NO\",M50,\"SE\",N50,\"DK\",O50,\"DE\",P50,\"CH\",Q50,\"NL\",R50,)","v":"SuperOffice utfører import av data ihht spesifikasjon (DE05)"},"Import of data","Import av data","Import av data","Import af data","Datenimport","Datenimport","Gegevens importeren","SuperOffice carries out import of data in accordance with specification (DE05)","SuperOffice utfører import av data ihht spesifikasjon (DE05)","SuperOffice utför import av data enligt specifikation (DE05)","SuperOffice udfører import af data iht. specifikation (DE05)","SuperOffice führt den Datenimport entsprechend der Spezifikation durch (DE05)","SuperOffice führt den Datenimport entsprechend der Spezifikation durch (DE05)","SuperOffice voert gegevensimport uit volgens specificatie (DE05)"]
[null,"IM12",{"$f":"_xlfn.SWITCH(Language,\"EN\",E51,\"NO\",F51,\"SE\",G51,\"DK\",H51,\"DE\",I51,\"CH\",J51,\"NL\",K51,)","v":"Oppsett av datasynkronisering (DataBridge)"},{"$f":"_xlfn.SWITCH(Language,\"EN\",L51,\"NO\",M51,\"SE\",N51,\"DK\",O51,\"DE\",P51,\"CH\",Q51,\"NL\",R51,)","v":"SuperOffice konfigurerer data synkronisering ihht spesifikasjon (DE06)"},"Setup of data synchronization (DataBridge)","Oppsett av datasynkronisering (DataBridge)","Konfiguration av datasynkronisering (DataBridge)","Opsætning af datasynkronisering (DataBridge)","Einrichtung der Datensynchronisierung (DataBridge)","Einrichtung der Datensynchronisierung (DataBridge)","Gegevenssynchronisatie (DataBridge)","SuperOffice configures data synchronisation in accordance with specification (DE06)","SuperOffice konfigurerer data synkronisering ihht spesifikasjon (DE06)","SuperOffice konfigurerar datasynkronisering enlifgt specifikation (DE06)","SuperOffice konfigurerer datasynkronisering iht. specifikation (DE06)","SuperOffice konfiguriert die Datensynchronisierung entsprechend der Spezifikation (DE06)","SuperOffice konfiguriert die Datensynchronisierung entsprechend der Spezifikation (DE06)","SuperOffice configureert gegevenssynchronisatie volgens specificatie (DE06)"]
[null,"IM13",{"$f":"_xlfn.SWITCH(Language,\"EN\",E52,\"NO\",F52,\"SE\",G52,\"DK\",H52,\"DE\",I52,\"CH\",J52,\"NL\",K52,)","v":"Konfigurasjon/tilpasning av kundesenter"},{"$f":"_xlfn.SWITCH(Language,\"EN\",L52,\"NO\",M52,\"SE\",N52,\"DK\",O52,\"DE\",P52,\"CH\",Q52,\"NL\",R52,)","v":"SuperOffice konfigurerer og tilpasser kundesenteret ihht spesifikasjon (DE07)"},"Configuration and setup of CEP","Konfigurasjon/tilpasning av kundesenter","Konfiguration och installation av CEP","Konfiguration og opsætning af CEP","CEP-Konfiguration und -Einrichtung","CEP-Konfiguration und -Einrichtung","CEP configureren ","SuperOffice configures and customises the customer centre in accordance with specification (DE07)","SuperOffice konfigurerer og tilpasser kundesenteret ihht spesifikasjon (DE07)","SuperOffice konfigurerar och anpassar kundcentrerat enligt specifikation (DE07)","SuperOffice konfigurerer og tilpasser kundecenteret iht. specifikation (DE07)","SuperOffice konfiguriert und passt das Kundenzentrum entsprechend der Spezifikation an (DE07)","SuperOffice konfiguriert und passt das Kundenzentrum entsprechend der Spezifikation an (DE07)","SuperOffice configureert en past het Customer Centre aan volgens specificatie (DE07)"]
[null,"IM14",{"$f":"_xlfn.SWITCH(Language,\"EN\",E53,\"NO\",F53,\"SE\",G53,\"DK\",H53,\"DE\",I53,\"CH\",J53,\"NL\",K53,)","v":"Test av løsning basert på arbeidsflyt"},{"$f":"_xlfn.SWITCH(Language,\"EN\",L53,\"NO\",M53,\"SE\",N53,\"DK\",O53,\"DE\",P53,\"CH\",Q53,\"NL\",R53,)","v":0},"Test of solution based on workflow","Test av løsning basert på arbeidsflyt","Test av lösning baserad på arbetsflöde","Test af løsning baseret på workflow","Test der Lösung basierend auf Workflow","Test der Lösung basierend auf Workflow","Workflow-gebaseerde oplossing testen"]
[null,"IM15",{"$f":"_xlfn.SWITCH(Language,\"EN\",E54,\"NO\",F54,\"SE\",G54,\"DK\",H54,\"DE\",I54,\"CH\",J54,\"NL\",K54,)","v":"Bistand med utarbeidelse av akseptansetest (kundens ansvar)"},{"$f":"_xlfn.SWITCH(Language,\"EN\",L54,\"NO\",M54,\"SE\",N54,\"DK\",O54,\"DE\",P54,\"CH\",Q54,\"NL\",R54,)","v":0},"Assistance with user acceptance test","Bistand med utarbeidelse av akseptansetest (kundens ansvar)","Hjälp med användaracceptanstest","Hjælp til brugeraccepttest","Unterstützung bei der Benutzerakzeptanzprüfung","Unterstützung bei der Benutzerakzeptanzprüfung","Assistentie voor acceptatietest"]
[null,"IM16",{"$f":"_xlfn.SWITCH(Language,\"EN\",E55,\"NO\",F55,\"SE\",G55,\"DK\",H55,\"DE\",I55,\"CH\",J55,\"NL\",K55,)","v":"Bistand i akseptansetest (kundens ansvar)"},{"$f":"_xlfn.SWITCH(Language,\"EN\",L55,\"NO\",M55,\"SE\",N55,\"DK\",O55,\"DE\",P55,\"CH\",Q55,\"NL\",R55,)","v":0},"Solution acceptanse test","Bistand i akseptansetest (kundens ansvar)","Test av lösningsacceptans","Løsningsaccepttest","Lösungsakzeptanzprüfung","Lösungsakzeptanzprüfung","Acceptatietest"]
[null,"IM17",{"$f":"_xlfn.SWITCH(Language,\"EN\",E56,\"NO\",F56,\"SE\",G56,\"DK\",H56,\"DE\",I56,\"CH\",J56,\"NL\",K56,)","v":"Prototype presentasjon Full"},{"$f":"_xlfn.SWITCH(Language,\"EN\",L56,\"NO\",M56,\"SE\",N56,\"DK\",O56,\"DE\",P56,\"CH\",Q56,\"NL\",R56,)","v":"Full løsning presenteres kunde. Dette inkluderer importerte eller synkroniserte data og eventuelle integrasjoner og tilpasninger. Løsningen godkjennes, behov for evt. endringer konkretiseres."},"Prototype presentation Full","Prototype presentasjon Full","Prototyppresentation Fullständig","Prototypepræsentation Full","Prototyp: Presentation Full","Prototyp: Presentation Full","Prototypepresentatie Full","Full solution presented to customer. This includes imported or synchronised data and any integrations and customisations. The solution is approved; any necessary changes are specified.","Full løsning presenteres kunde. Dette inkluderer importerte eller synkroniserte data og eventuelle integrasjoner og tilpasninger. Løsningen godkjennes, behov for evt. endringer konkretiseres.","Full lösning presenteras för kunden. Detta inkluderar importerade eller synkroniserade data och eventuella integrationer och anpassningar. Lösningen godkänns, behov av ev. ändringar konkretiseras.","Den fulde løsning præsenteres for kunden. Dette omfatter importerede eller synkroniserede data og eventuelle integrationer og tilpasninger. Løsningen godkendes. Alle nødvendige ændringer angives.","Präsentation der vollständigen Lösung für den Kunden. Dazu gehören die importierten bzw. synchronisierten Daten sowie alle Integrationen und Anpassungen. Alle notwendigen Änderungen werden spezifiziert und die Lösung wird genehmigt.","Präsentation der vollständigen Lösung für den Kunden. Dazu gehören die importierten bzw. synchronisierten Daten sowie alle Integrationen und Anpassungen. Alle notwendigen Änderungen werden spezifiziert und die Lösung wird genehmigt.","Volledige oplossing wordt gepresenteerd aan de klant. Dit omvat geïmporteerde of gesynchroniseerde gegevens en eventuele integraties en aanpassingen. De oplossing wordt goedgekeurd; eventuele noodzakelijke wijzigingen worden gespecificeerd."]
[null,"ON01",{"$f":"_xlfn.SWITCH(Language,\"EN\",E57,\"NO\",F57,\"SE\",G57,\"DK\",H57,\"DE\",I57,\"CH\",J57,\"NL\",K57,)","v":"Onboarding møte"},{"$f":"_xlfn.SWITCH(Language,\"EN\",L57,\"NO\",M57,\"SE\",N57,\"DK\",O57,\"DE\",P57,\"CH\",Q57,\"NL\",R57,)","v":"Sikre at organisasjonen (kjerneteam) er klare til å fasilitere endringsreisen og sikre varig effekt av SuperOffice. Identifisere de tradisjonelle motstandere i endringer og hvordan ivaretar vi de. Utarbeide plan sammen med kjerneteam for å sikre at endringsreisen ivaretas også på sikt"},"Onboarding meeting","Onboarding møte","Onboarding-möte","Onboarding-møde","Onboarding-Meeting","Onboarding-Meeting","Onboarding-meeting","Ensure that your organisation (core team) is ready to facilitate the journey of change and ensure a lasting effect from SuperOffice. Identify those traditionally opposed to change and determine how we can take care of them. Draw up a plan together with the core team to ensure that the journey of change is also safeguarded in the long term","Sikre at organisasjonen (kjerneteam) er klare til å fasilitere endringsreisen og sikre varig effekt av SuperOffice. Identifisere de tradisjonelle motstandere i endringer og hvordan ivaretar vi de. Utarbeide plan sammen med kjerneteam for å sikre at endringsreisen ivaretas også på sikt","Säkerställ att organisationen (kärnteamet) är redo att facilitera förändringsresan och säkerställa bestående effekt SuperOffice. Identifiera de traditionella motståndarna till förändring och hur vi hanterar dem. Utarbeta plan tillsammans med kärnteamet för att säkerställa att förändringsresan säkras också på sikt","Sikre, at din organisation (kerneteamet) er klar til at facilitere forandringsrejsen og sikre en varig effekt fra SuperOffice. Identificere dem, der normalt modsætter sig forandring, og fastlægge hvordan vi kan tage hånd om dem. Udarbejde en plan sammen med kerneteamet for at sikre, at forandringsrejsen også sikres på længere sigt.","Vorbereiten Ihrer Firma (des Kernteams) auf den Weg des Wandels, damit sie diesen unterstützt und die Vorteile von SuperOffice dauerhaft zum Tragen kommen können. Herausarbeiten der normalerweise gegen Veränderungen eingestellten Personenkreise, um auch diese einzubeziehen und zu überzeugen. Gemeinsame Planung mit dem Kernteam, wie der Weg des Wandels auch langfristig abgesichert werden kann.","Vorbereiten Ihrer Firma (des Kernteams) auf den Weg des Wandels, damit sie diesen unterstützt und die Vorteile von SuperOffice dauerhaft zum Tragen kommen können. Herausarbeiten der normalerweise gegen Veränderungen eingestellten Personenkreise, um auch diese einzubeziehen und zu überzeugen. Gemeinsame Planung mit dem Kernteam, wie der Weg des Wandels auch langfristig abgesichert werden kann.","Zorg ervoor dat uw organisatie (kernteam) gereed is om het veranderingstraject te faciliteren en te zorgen voor een blijvend effect van SuperOffice. Identificeer degenen die traditioneel tegen verandering zijn en bepaal hoe we voor hen kunnen zorgen. Stel een plan op met het kernteam om ervoor te zorgen dat het veranderingstraject ook op de lange termijn wordt gewaarborgd"]
[null,"ON02",{"$f":"_xlfn.SWITCH(Language,\"EN\",E58,\"NO\",F58,\"SE\",G58,\"DK\",H58,\"DE\",I58,\"CH\",J58,\"NL\",K58,)","v":"Train the Trainer"},{"$f":"_xlfn.SWITCH(Language,\"EN\",L58,\"NO\",M58,\"SE\",N58,\"DK\",O58,\"DE\",P58,\"CH\",Q58,\"NL\",R58,)","v":"Trene kjerneteam i å trene organisasjonen i SuperOffice. Samtidig vil kjerneteam oppnå økt kompetanse i SuperOffice administrasjon og bruk. Forberede utrullingsplan og personlig plan med kjerneteam."},"Train the Trainer","Train the Trainer","Train the Trainer","Train the Trainer","Schulung für den Schulungsleiter","Schulung für den Schulungsleiter","Train-the-Trainer","Train the core team to train the organisation in SuperOffice. At the same time, the core team will also develop enhanced skills and expertise pertaining to SuperOffice administration and use. Prepare a roll-out plan and a personal plan with the core team.","Trene kjerneteam i å trene organisasjonen i SuperOffice. Samtidig vil kjerneteam oppnå økt kompetanse i SuperOffice administrasjon og bruk. Forberede utrullingsplan og personlig plan med kjerneteam.","Träna kärnteam i att träna organisationen i SuperOffice. Samtidigt kommer kärnteamet att uppnå ökad kompetens i administration och användning av SuperOffice. Förbereda utrullningsplan och personlig plan tillsammans med kärnteamet.","Træn kerneteamet til at træne organisationen i SuperOffice og strukturen omkring den. Samtidig vil kerneteamet opnå øget kompetence i administration og brug af SuperOffice. Forbered en udrulningsplan og en personlig plan med kerneteamet.","Schulung des Kernteams, sodass es die Belegschaft in SuperOffice schulen kann. Gleichzeitig entwickelt das Kernteam seine Fähigkeiten und Fachkenntnisse in der Administration und Nutzung von SuperOffice weiter. Ausarbeiten eines Rollout-Plans und eines persönlichen Plans mit dem Kernteam.","Schulung des Kernteams, sodass es die Belegschaft in SuperOffice schulen kann. Gleichzeitig entwickelt das Kernteam seine Fähigkeiten und Fachkenntnisse in der Administration und Nutzung von SuperOffice weiter. Ausarbeiten eines Rollout-Plans und eines persönlichen Plans mit dem Kernteam.","Train het kernteam zodat het de organisatie kan trainen in SuperOffice. Tegelijkertijd zal het kernteam ook verbeterde vaardigheden en expertise ontwikkelen met betrekking tot het beheer en gebruik van SuperOffice. Maak met het kernteam een uitrolplan en een persoonlijk plan."]
[null,"ON03",{"$f":"_xlfn.SWITCH(Language,\"EN\",E59,\"NO\",F59,\"SE\",G59,\"DK\",H59,\"DE\",I59,\"CH\",J59,\"NL\",K59,)","v":"Bedriftstilpasset opplæring"},{"$f":"_xlfn.SWITCH(Language,\"EN\",L59,\"NO\",M59,\"SE\",N59,\"DK\",O59,\"DE\",P59,\"CH\",Q59,\"NL\",R59,)","v":"SuperOffice utarbeider et opplæringsprogram som er tilpasset deres organisasjon. Kurslederen vil på bakgrunn av de behov dere har definert, tilpasse et eget kursopplegg. Vår erfaring tilsier at det beste læringsresultatet er når kurset holdes på egen database. "},"Customer adjusted training","Bedriftstilpasset opplæring","Kundanpassad utbildning","Kundetilpasset uddannelse","Kundenspezifische Schulung","Kundenspezifische Schulung","Gebruikerstrainingssessies op maat","SuperOffice will prepare a training programme tailored to your organisation. Based on the requirements you have defined, the course leader will prepare a custom course programme. In our experience, the best result comes from training against your own database. ","SuperOffice utarbeider et opplæringsprogram som er tilpasset deres organisasjon. Kurslederen vil på bakgrunn av de behov dere har definert, tilpasse et eget kursopplegg. Vår erfaring tilsier at det beste læringsresultatet er når kurset holdes på egen database. ","SuperOffice tar fram ett utbildningsprogram som är anpassat till deras organisation. Kursledaren kommer mot bakgrund av de behov ni har definierat anpassa ett eget kursupplägg. Vår erfarenhet visar att det bästa inlärningsresultatet uppnås när kursen hålls på egen databas. ","SuperOffice forbereder et uddannelsesprogram, der er skræddersyet til jeres organisation. Ud fra de krav, du har defineret, udarbejder kursuslederen et brugerdefineret kursusprogram. Vores erfaring viser, at det bedste læringsresultat opnås, når kurset gennemføres i egen database. ","SuperOffice arbeitet ein auf Ihre Firma zugeschnittenes Schulungsprogramm aus. Anhand der von Ihnen definierten Anforderungen arbeitet der Schulungsleiter ein individuelles Schulungsprogramm aus. Unserer Erfahrung nach ist der Lernerfolg bei einer Schulung anhand Ihrer eigenen Datenbank am größten. ","SuperOffice arbeitet ein auf Ihre Firma zugeschnittenes Schulungsprogramm aus. Anhand der von Ihnen definierten Anforderungen arbeitet der Schulungsleiter ein individuelles Schulungsprogramm aus. Unserer Erfahrung nach ist der Lernerfolg bei einer Schulung anhand Ihrer eigenen Datenbank am grössten. ","SuperOffice bereidt voor uw organisatie een trainingsprogramma op maat voor. Op basis van de gedefinieerde vereisten maakt de cursusleider een cursusprogramma op maat. Onze ervaring leert dat het beste resultaat wordt bereikt door training met gebruik van uw eigen database. "]
[null,"ON04",{"$f":"_xlfn.SWITCH(Language,\"EN\",E60,\"NO\",F60,\"SE\",G60,\"DK\",H60,\"DE\",I60,\"CH\",J60,\"NL\",K60,)","v":"Administrator gjennomgang"},{"$f":"_xlfn.SWITCH(Language,\"EN\",L60,\"NO\",M60,\"SE\",N60,\"DK\",O60,\"DE\",P60,\"CH\",Q60,\"NL\",R60,)","v":"Et kurs i hvordan SuperOffice administreres. Kurset vil gi deg innsikt i hvordan SuperOffice kan tilpasses og optimaliseres til din bedrift. Teamaer som gjennomgås er blandt annet:  brukerrettigheter for ansatte, brukergrensesnitt, brukerdefinerte felt, import, web paneler og dokumentmaler. "},"Administrator training","Administrator gjennomgang","Administratörsutbildning","Administratoruddannelse","Administratorenschulung","Administratorenschulung","Beheerderstraining","A course on how SuperOffice is administered. The course will give you an insight into how SuperOffice can be tailored and optimised for your company. Topics covered include: user rights for employees, user interface, user-defined fields, importing, web panels and document templates. ","Et kurs i hvordan SuperOffice administreres. Kurset vil gi deg innsikt i hvordan SuperOffice kan tilpasses og optimaliseres til din bedrift. Teamaer som gjennomgås er blandt annet:  brukerrettigheter for ansatte, brukergrensesnitt, brukerdefinerte felt, import, web paneler og dokumentmaler. ","En kurs i hur SuperOffice administreras. Kursen kommer att ge dig inblick i hur SuperOffice kan anpassas och optimeras för ditt företag. Teman som gås igenom är bland annat: användarrättigheter för anställda, användargränssnitt, användardefinierade fält, import, webbpaneler och dokumentmallar. ","Et kursus i, hvordan SuperOffice administreres. Kurset giver dig et indblik i, hvordan SuperOffice kan skræddersys og optimeres til din virksomhed. Emnerne omfatter: brugerrettigheder for medarbejdere, brugergrænseflade, brugerdefinerede felter, import, webpaneler og dokumentskabeloner. ","Schulung zur Administration von SuperOffice. In der Schulung lernen Sie, wie SuperOffice auf Ihre Firma zugeschnitten und optimiert werden kann. Behandelte Themen: Benutzerrechte für Mitarbeiter, Benutzeroberfläche, benutzerdefinierte Felder, Import, Web-Bildschirme und Dokumentvorlagen. ","Schulung zur Administration von SuperOffice. In der Schulung lernen Sie, wie SuperOffice auf Ihre Firma zugeschnitten und optimiert werden kann. Behandelte Themen: Benutzerrechte für Mitarbeiter, Benutzeroberfläche, benutzerdefinierte Felder, Import, Web-Bildschirme und Dokumentvorlagen. ","Een cursus over het beheer van SuperOffice. De cursus geeft inzicht in de manier waarop u SuperOffice kunt afstemmen op en optimaliseren voor uw bedrijf. Tot de besproken onderwerpen behoren onder meer: gebruikersrechten voor werknemers, gebruikersinterface, door de gebruiker gedefinieerde velden, importeren, webvensters en documentsjablonen. "]
[null,"ON05",{"$f":"_xlfn.SWITCH(Language,\"EN\",E61,\"NO\",F61,\"SE\",G61,\"DK\",H61,\"DE\",I61,\"CH\",J61,\"NL\",K61,)","v":"GO-Live assistanse"},{"$f":"_xlfn.SWITCH(Language,\"EN\",L61,\"NO\",M61,\"SE\",N61,\"DK\",O61,\"DE\",P61,\"CH\",Q61,\"NL\",R61,)","v":"Formålet med denne aktiviteten er å få alle brukere skikkelig i gang med løsningen. Er det ting som dukker opp ved oppstart har dere en konsulent til stede eller remote som kan bistå dersom det skulle være noe eller dere trenger annen rådgivning i oppstartsfasen. "},"GO-Live Assistanse","GO-Live assistanse","GO-Live assistans","GO-Live Assistance","Go-Live-Unterstützung","Go-Live-Unterstützung","Assistentie voor GO LIVE","The purpose of this activity is to get all users under way with the solution. If any issues arise in connection with start-up, or if you need any other advice during the start-up process, you will have a consultant either on site or available remotely who will be able to assist you. ","Formålet med denne aktiviteten er å få alle brukere skikkelig i gang med løsningen. Er det ting som dukker opp ved oppstart har dere en konsulent til stede eller remote som kan bistå dersom det skulle være noe eller dere trenger annen rådgivning i oppstartsfasen. ","Syftet med den här aktiviteten är att få alla användare att komma igång ordentligt med lösningen. Om det dyker upp saker vid uppstart har ni en konsult på plats eller remote som kan hjälpa er om det skulle vara något eller om ni behöver annan rådgivning i uppstartsfasen. ","Formålet med denne aktivitet er at hjælpe alle brugere i gang med løsningen. Hvis der opstår problemer i forbindelse med opstart, eller hvis du har brug for anden rådgivning under opstartsprocessen, får du en konsulent enten på stedet eller fjernbaseret, som vil kunne hjælpe dig ","Der Zweck dieser Maßnahme besteht darin, die Benutzer bei den ersten Schritten mit der neuen Lösung zu unterstützen. Wenn Probleme im Zusammenhang mit der Inbetriebnahme auftreten oder Sie dazu weitere Beratung benötigen, steht Ihnen vor Ort oder remote ein Berater zur Seite, der Sie unterstützt. ","Der Zweck dieser Massnahme besteht darin, die Benutzer bei den ersten Schritten mit der neuen Lösung zu unterstützen. Wenn Probleme im Zusammenhang mit der Inbetriebnahme auftreten oder Sie dazu weitere Beratung benötigen, steht Ihnen vor Ort oder remote ein Berater zur Seite, der Sie unterstützt. ","Deze activiteit heeft tot doel, alle gebruikers op weg te helpen met de oplossing. Als er zich problemen voordoen in verband met het opstarten of als u tijdens het opstartproces ander advies nodig hebt, is er een consultant ter plaatse of op afstand beschikbaar die u kan helpen. "]
[null,"ON06",{"$f":"_xlfn.SWITCH(Language,\"EN\",E62,\"NO\",F62,\"SE\",G62,\"DK\",H62,\"DE\",I62,\"CH\",J62,\"NL\",K62,)","v":"Sign off leveranse"},{"$f":"_xlfn.SWITCH(Language,\"EN\",L62,\"NO\",M62,\"SE\",N62,\"DK\",O62,\"DE\",P62,\"CH\",Q62,\"NL\",R62,)","v":"Koordinering av leveransen mot kundens prosjektleder/ansvarlig samt en signering på at leveransen er avsluttet. "},"Delivery Sign off","Sign off leveranse","Sign-off av leverans","Godkendelse af levering","Sign-off der zu erbringende Leistungen","Sign-off der zu erbringende Leistungen","Overdracht en evaluatie meeting","Coordination of delivery with customer’s project manager/person responsible and sign off once delivery is concluded. ","Koordinering av leveransen mot kundens prosjektleder/ansvarlig samt en signering på at leveransen er avsluttet. ","Samordning av leveransen mot kundens projektledare/ansvarig samt signering av att leveransen är avslutad. ","Koordinering af leverancen mod kundens projektleder/ansvarlige samt en godkendelse af, at leverancen er afsluttet. ","Koordination der zu erbringenden Leistungen mit dem Projektmanager/der verantwortlichen Person beim Kunden und Sign-off nach Leistungserbringung. ","Koordination der zu erbringenden Leistungen mit dem Projektmanager/der verantwortlichen Person beim Kunden und Sign-off nach Leistungserbringung. ","Coördinatie van de oplevering met de projectmanager/verantwoordelijke persoon van de klant en aftekenen zodra de oplevering is voltooid. "]
[null,"ON07",{"$f":"_xlfn.SWITCH(Language,\"EN\",E63,\"NO\",F63,\"SE\",G63,\"DK\",H63,\"DE\",I63,\"CH\",J63,\"NL\",K63,)","v":"Aftercare"},{"$f":"_xlfn.SWITCH(Language,\"EN\",L63,\"NO\",M63,\"SE\",N63,\"DK\",O63,\"DE\",P63,\"CH\",Q63,\"NL\",R63,)","v":0},"Aftercare","Aftercare","Eftervård","Efterbehandling","Nachbetreuung","Nachbetreuung","Nazorg"]
[null,"PM01",{"$f":"_xlfn.SWITCH(Language,\"EN\",E64,\"NO\",F64,\"SE\",G64,\"DK\",H64,\"DE\",I64,\"CH\",J64,\"NL\",K64,)","v":"Prosjektledelse"},{"$f":"_xlfn.SWITCH(Language,\"EN\",L64,\"NO\",M64,\"SE\",N64,\"DK\",O64,\"DE\",P64,\"CH\",Q64,\"NL\",R64,)","v":"Planlegging av prosjektet i samarbeid med kundens prosjektleder. Oppgavene er bl.a. å utarbeide prosjektplan og allokere ressurser."},"Project managment","Prosjektledelse","Projektledning","Projektledelse","Projektmanagement","Projektmanagement","Projectmanagement","Planning of the project in collaboration with the customer's project manager. Tasks include preparation of project schedule and allocation of resources.","Planlegging av prosjektet i samarbeid med kundens prosjektleder. Oppgavene er bl.a. å utarbeide prosjektplan og allokere ressurser.","Planering av projektet i samarbete med kundens projektledare. Uppgifterna är bland annat att utarbeta en projektplan och allokera resurser.","Planlægge projektet sammen med kundens projektleder. Opgaverne er bl.a. at udarbejde projektplaner og allokere ressourcer.","Die Projektplanung erfolgt in Zusammenarbeit mit dem Projektmanager des Kunden. Zu den Aufgaben gehören die Erstellung des Projektzeitplans und die Zuweisung von Ressourcen.","Die Projektplanung erfolgt in Zusammenarbeit mit dem Projektmanager des Kunden. Zu den Aufgaben gehören die Erstellung des Projektzeitplans und die Zuweisung von Ressourcen.","Planning van het project in samenwerking met de projectmanager van de klant. Taken omvatten het opstellen van de projectplanning en de toewijzing van de middelen."]
[null,"PM02",{"$f":"_xlfn.SWITCH(Language,\"EN\",E65,\"NO\",F65,\"SE\",G65,\"DK\",H65,\"DE\",I65,\"CH\",J65,\"NL\",K65,)","v":"Prosjektledelse"},{"$f":"_xlfn.SWITCH(Language,\"EN\",L65,\"NO\",M65,\"SE\",N65,\"DK\",O65,\"DE\",P65,\"CH\",Q65,\"NL\",R65,)","v":"Koordinering og kvalitetsikring av prosjektets leveranser i samarbeid med kundens prosjektleder og kjerneteam."},"Project managment","Prosjektledelse","Projektledning","Projektledelse","Projektmanagement","Projektmanagement","Projectmanagement","Coordination and quality assurance of the project's deliverables in consultation with the customer's project manager and core team.","Koordinering og kvalitetsikring av prosjektets leveranser i samarbeid med kundens prosjektleder og kjerneteam.","Samordning och kvalitetssäkring av projektets leveranser i samarbete med kundens projektledare och kärnteam.","Koordinering og kvalitetssikring af projektets leverancer i samråd med kundens projektleder og kerneteam.","Koordination und Qualitätssicherung der im Rahmen des Projekts zu erbringenden Leistungen erfolgen in Absprache mit dem Projektmanager und dem Kernteam des Kunden.","Koordination und Qualitätssicherung der im Rahmen des Projekts zu erbringenden Leistungen erfolgen in Absprache mit dem Projektmanager und dem Kernteam des Kunden.","Coördinatie en kwaliteitsborging van de projectresultaten in overleg met de projectmanager en het kernteam van de klant."]
[null,"PM03",{"$f":"_xlfn.SWITCH(Language,\"EN\",E66,\"NO\",F66,\"SE\",G66,\"DK\",H66,\"DE\",I66,\"CH\",J66,\"NL\",K66,)","v":"Forberedelser til workshops"},{"$f":"_xlfn.SWITCH(Language,\"EN\",L66,\"NO\",M66,\"SE\",N66,\"DK\",O66,\"DE\",P66,\"CH\",Q66,\"NL\",R66,)","v":"Beskrivelse av Forberedelser til workshops"},"Project preparations","Forberedelser til workshops","Projektförberedelser","Projektforberedelser","Projektvorbereitung","Projektvorbereitung","Projectvoorbereidingen","Description of Project preparations",{"$f":"\"Beskrivelse av \"&F66","v":"Beskrivelse av Forberedelser til workshops"},{"$f":"\"Beskrivning av \"&G66","v":"Beskrivning av Projektförberedelser"},{"$f":"\"Beskrivelse af \"&H66","v":"Beskrivelse af Projektforberedelser"},{"$f":"\"Beschreibung der \"&I66","v":"Beschreibung der Projektvorbereitung"},{"$f":"\"Beschreibung der \"&J66","v":"Beschreibung der Projektvorbereitung"},"Beschrijving van de projectvoorbereidingen"]
[null,"PM04",{"$f":"_xlfn.SWITCH(Language,\"EN\",E67,\"NO\",F67,\"SE\",G67,\"DK\",H67,\"DE\",I67,\"CH\",J67,\"NL\",K67,)","v":"Etterarbeid workshops"},{"$f":"_xlfn.SWITCH(Language,\"EN\",L67,\"NO\",M67,\"SE\",N67,\"DK\",O67,\"DE\",P67,\"CH\",Q67,\"NL\",R67,)","v":"Beskrivelse av Etterarbeid workshops"},"Project work","Etterarbeid workshops","Projektarbete","Projektarbejde","Projektarbeit","Projektarbeit","Projectwerk","Description of Project work","Beskrivelse av Etterarbeid workshops",{"$f":"\"Beskrivning av \"&G67","v":"Beskrivning av Projektarbete"},{"$f":"\"Beskrivelse af \"&H67","v":"Beskrivelse af Projektarbejde"},{"$f":"\"Beschreibung der \"&I67","v":"Beschreibung der Projektarbeit"},{"$f":"\"Beschreibung der \"&J67","v":"Beschreibung der Projektarbeit"},"Beschrijving van projectwerkzaamheden"]

{"sheet":"Currency","index":5,"n_rows":26,"n_cols":10,"rows_kept":26,"cut":false,"hidden":true,"merged":[]}
[]
[null,"SETTINGS"]
[null,"CURRENCY"]
[null,"Choose country",{"$f":"Country","v":"Norway"}]
[null,"Base estimates on","Hour rate"]
[]
[null,"Consultancy tariffs","Set rate","Set currency"]
[null,"Price per hour",{"$f":"IF(RateType=\"Normal\",_xlfn.SWITCH(Country,\"Benelux\",IF(C5=\"Day rate\",C12/8,D12),\"Germany\",IF(C5=\"Day rate\",C13/8,D13),\"Denmark\",IF(C5=\"Day rate\",C14/8,D14),\"Norway\",IF(C5=\"Day rate\",C15/8,D15),\"Sweden\",IF(C5=\"Day rate\",C16/8,D16),\"Switzerland\",IF(C5=\"Day rate\",C17/8,D17),\"United Kingdom\",IF(C5=\"Day rate\",C18/8,D18)),_xlfn.SWITCH(Country,\"Benelux\",IF(C5=\"Day rate\",E12/8,F12),\"Germany\",IF(C5=\"Day rate\",E13/8,F13),\"Denmark\",IF(C5=\"Day rate\",E14/8,F14),\"Norway\",IF(C5=\"Day rate\",E15/8,F15),\"Sweden\",IF(C5=\"Day rate\",E16/8,F16),\"Switzerland\",IF(C5=\"Day rate\",E17/8,F17),\"United Kingdom\",IF(C5=\"Day rate\",E18/8,F18)))","v":1555},{"$f":"_xlfn.SWITCH(Country,\"Benelux\",G12,\"Germany\",G13,\"Denmark\",G14,\"Norway\",G15,\"Sweden\",G16,\"Switzerland\",G17,\"United Kingdom\",G18)","v":"NOK"}]
[]
[]
[null,"Consultancy rates","Normal day rate","Normal hour rate","Senior day rate","Senior hour rate","Currency"]
[null,"Benelux",1160,{"$f":"C12/8","v":145},null,null,"EUR"]
[null,"Germany",1325,{"$f":"C13/8","v":165.625},null,null,"EUR"]
[null,"Denmark",12000,1500,null,null,"DKK"]
[null,"Norway",12440,1555,13520,{"$f":"E15/8","v":1690},"NOK"]
[null,"Sweden",11600,1450,null,null,"SEK"]
[null,"Switzerland",1800,225,null,null,"CHF"]
[null,"United Kingdom",990,123.75,null,null,"GBP"]
[]
[]
[]
[]
[]
[]
[]
[null,null,null,null,null,null,null,null,null,"."]